Body Name,Body,Service Division Label,Service Division Code,Organisational Unit,Expenditure Category,Expenditure Code,CIPFA detailed expediture type,CIPFA detailed expediture code,Narrative,Date,Transaction number,Net Amount,Capital and Revenue,Supplier Name,Supplier ID
Chorley Borough Council,http://statistics.data.gov.uk/id/local-authority/30UE,Early Intervention & Support,,Early Intervention,Grants,3002,Other Subjective Codes,,ADDRESS REDACTED,18/10/2017,124782,"2,979.00",Revenue,Accessible Bathroom Solutions Ltd,58149
Chorley Borough Council,http://statistics.data.gov.uk/id/local-authority/30UE,Comm centres & public hall,,Policy & Governance,Other Fees,40212,Expenditure,,Bar fees for September 2017.,06/10/2017,124657,260.00,Revenue,Ace Bars Ltd,54338
Chorley Borough Council,http://statistics.data.gov.uk/id/local-authority/30UE,People,,Early Intervention,Furniture - Purchase,40012,Net Expenditure or Balance,,Breakfast Mini Danish (will be cooked fresh on the morning as part baked) and orange juice  = 60 Lunch 225 sandwich bags ,11/10/2017,124297,935.00,Revenue,Active Nation UK Ltd,17144
Chorley Borough Council,http://statistics.data.gov.uk/id/local-authority/30UE,Cost of Service,,Early Intervention,External Contractor - Trust or Charity,50008,Net Expenditure or Balance,,Active Nation Management Fee Contract Year 12 Apr17-Mar-18,11/10/2017,124575,"32,804.92",Revenue,Active Nation UK Ltd,17144
Chorley Borough Council,http://statistics.data.gov.uk/id/local-authority/30UE,Capital Fund,,Business Development & Growth,Main Contractor,3007,Other Subjective Codes,,Cotswold House Access control system works and maintenance 24/02/2017-13/05/2017,06/10/2017,124374,"2,072.99",Revenue,ADT Fire & Security,16645
Chorley Borough Council,http://statistics.data.gov.uk/id/local-authority/30UE,Recharges within central servi,,Business Development & Growth,Planned Maintenance,20006,Expenditure,,Blanket order for PPM works from September 2017,18/10/2017,124816,514.80,Revenue,ADT Fire & Security,16645
Chorley Borough Council,http://statistics.data.gov.uk/id/local-authority/30UE,DELETE,1009,Business Development & Growth,Planned Maintenance,20006,Cash,,Blanket order for PPM works from September 2017,20/10/2017,124959,"1,009.56",Revenue,ADT Fire & Security,16645
Chorley Borough Council,http://statistics.data.gov.uk/id/local-authority/30UE,Comprehensive I&E Statement,,Customer & Digital,Vehicle Maintenance,30045,Vehicle Repairs & Maintenance,,1009671-8  Water Dump Cable x 1,06/10/2017,124527,43.23,Revenue,Aebi Schmidt UK Ltd,17287
Chorley Borough Council,http://statistics.data.gov.uk/id/local-authority/30UE,Chorley Borough Council,,Customer & Digital,Vehicle Maintenance,30045,Vehicle Repairs & Maintenance,,1009671-8 Water Dump Cable x 1,06/10/2017,124527,43.23,Revenue,Aebi Schmidt UK Ltd,17287
Chorley Borough Council,http://statistics.data.gov.uk/id/local-authority/30UE,Comprehensive I&E Statement,,Customer & Digital,Vehicle Maintenance,30045,Transport Related Expenses,,1026752-4 Swingo Skirt Strap Assembly x 1,06/10/2017,124527,7.92,Revenue,Aebi Schmidt UK Ltd,17287
Chorley Borough Council,http://statistics.data.gov.uk/id/local-authority/30UE,Chorley Borough Council,,Customer & Digital,Vehicle Maintenance,30045,Vehicle Repairs & Maintenance,,1026752-4 Swingo Skirt Strap Assembly x 1,06/10/2017,124527,7.92,Revenue,Aebi Schmidt UK Ltd,17287
Chorley Borough Council,http://statistics.data.gov.uk/id/local-authority/30UE,Comprehensive I&E Statement,,Customer & Digital,Vehicle Maintenance,30045,Vehicle Repairs & Maintenance,,1096271-9 Main Air Fliter x 1,06/10/2017,124527,54.88,Revenue,Aebi Schmidt UK Ltd,17287
Chorley Borough Council,http://statistics.data.gov.uk/id/local-authority/30UE,Chorley Borough Council,,Customer & Digital,Vehicle Maintenance,30045,Vehicle Repairs & Maintenance,,1096271-9 Main Air Fliter x 1,06/10/2017,124527,54.88,Revenue,Aebi Schmidt UK Ltd,17287
Chorley Borough Council,http://statistics.data.gov.uk/id/local-authority/30UE,Comprehensive I&E Statement,,Customer & Digital,Vehicle Maintenance,30045,Transport Related Expenses,,1096292-4 Secondary Air Filter x 1,06/10/2017,124527,50.56,Revenue,Aebi Schmidt UK Ltd,17287
Chorley Borough Council,http://statistics.data.gov.uk/id/local-authority/30UE,Chorley Borough Council,,Customer & Digital,Vehicle Maintenance,30045,Vehicle Repairs & Maintenance,,1096292-4 Secondary Air Filter x 1,06/10/2017,124527,50.56,Revenue,Aebi Schmidt UK Ltd,17287
Chorley Borough Council,http://statistics.data.gov.uk/id/local-authority/30UE,Comprehensive I&E Statement,,Customer & Digital,Vehicle Maintenance,30045,Transport Related Expenses,,1102908-6 VM Fuel Filter Element x 1,06/10/2017,124527,42.15,Revenue,Aebi Schmidt UK Ltd,17287
Chorley Borough Council,http://statistics.data.gov.uk/id/local-authority/30UE,Chorley Borough Council,,Customer & Digital,Vehicle Maintenance,30045,Net Expenditure or Balance,,1102908-6 VM Fuel Filter Element x 1,06/10/2017,124527,42.15,Revenue,Aebi Schmidt UK Ltd,17287
Chorley Borough Council,http://statistics.data.gov.uk/id/local-authority/30UE,Comprehensive I&E Statement,,Customer & Digital,Vehicle Maintenance,30045,Transport Related Expenses,,0289832-8 VM Oil Filter x 1,06/10/2017,124527,16.05,Revenue,Aebi Schmidt UK Ltd,17287
Chorley Borough Council,http://statistics.data.gov.uk/id/local-authority/30UE,Chorley Borough Council,,Customer & Digital,Vehicle Maintenance,30045,Vehicle Repairs & Maintenance,,0289832-8 VM Oil Filter x 1,06/10/2017,124527,16.05,Revenue,Aebi Schmidt UK Ltd,17287
Chorley Borough Council,http://statistics.data.gov.uk/id/local-authority/30UE,Comprehensive I&E Statement,,Customer & Digital,Vehicle Maintenance,30045,Transport Related Expenses,,12-97600518 Filter Transmission pump x 1,06/10/2017,124527,14.94,Revenue,Aebi Schmidt UK Ltd,17287
Chorley Borough Council,http://statistics.data.gov.uk/id/local-authority/30UE,Chorley Borough Council,,Customer & Digital,Vehicle Maintenance,30045,Vehicle Repairs & Maintenance,,12-97600518 Filter Transmission pump x 1,06/10/2017,124527,14.94,Revenue,Aebi Schmidt UK Ltd,17287
Chorley Borough Council,http://statistics.data.gov.uk/id/local-authority/30UE,Comprehensive I&E Statement,,Customer & Digital,Vehicle Maintenance,30045,Transport Related Expenses,,1143973-0 Filter Cartridge RK010 x 1,06/10/2017,124527,82.68,Revenue,Aebi Schmidt UK Ltd,17287
Chorley Borough Council,http://statistics.data.gov.uk/id/local-authority/30UE,Chorley Borough Council,,Customer & Digital,Vehicle Maintenance,30045,Vehicle Repairs & Maintenance,,1143973-0 Filter Cartridge RK010 x 1,06/10/2017,124527,82.68,Revenue,Aebi Schmidt UK Ltd,17287
Chorley Borough Council,http://statistics.data.gov.uk/id/local-authority/30UE,Comprehensive I&E Statement,,Customer & Digital,Vehicle Maintenance,30045,Transport Related Expenses,,1109371-9 Air Filter folded G4 x 1,06/10/2017,124527,24.12,Revenue,Aebi Schmidt UK Ltd,17287
Chorley Borough Council,http://statistics.data.gov.uk/id/local-authority/30UE,Chorley Borough Council,,Customer & Digital,Vehicle Maintenance,30045,Vehicle Repairs & Maintenance,,1109371-9 Air Filter folded G4 x 1,06/10/2017,124527,24.12,Revenue,Aebi Schmidt UK Ltd,17287
Chorley Borough Council,http://statistics.data.gov.uk/id/local-authority/30UE,Comprehensive I&E Statement,,Customer & Digital,Vehicle Maintenance,30045,Transport Related Expenses,,Freight & Package,06/10/2017,124527,14.97,Revenue,Aebi Schmidt UK Ltd,17287
Chorley Borough Council,http://statistics.data.gov.uk/id/local-authority/30UE,Community development,,Business Development & Growth,Publicity - Advertising,40157,Advertising and Publicity,,To produce a new set of 5 CGI�s for the Market Walk extension for use in publicity for phase 2 and letting information.,20/10/2017,124965,"1,437.00",Revenue,AEW Architects & Designers Ltd,66520
Chorley Borough Council,http://statistics.data.gov.uk/id/local-authority/30UE,Employment Skills & Business,,Business Development & Growth,Grants To Other Organisations,40127,Net Expenditure or Balance,,sib grant,20/10/2017,124640,250.00,Revenue,NAME REDACTED,76951
Chorley Borough Council,http://statistics.data.gov.uk/id/local-authority/30UE,Cost of Service,,Customer & Digital,Bank Charges,40151,Finance & Insurance Expenses,,cash transactions,20/10/2017,124630,"1,740.14",Revenue,Allpay Net Ltd,17242
Chorley Borough Council,http://statistics.data.gov.uk/id/local-authority/30UE,Planning Services,,Policy & Governance,Car Leasing Payment,14100,Car Leasing,,NAME REDACTED,06/10/2017,124491,"2,954.48",Revenue,Alphabet (Uk) Fleet Management Ltd,16651
Chorley Borough Council,http://statistics.data.gov.uk/id/local-authority/30UE,Planning,,Policy & Governance,Car Leasing Payment,14100,Expenditure,,,06/10/2017,124491,250.13,Revenue,Alphabet (Uk) Fleet Management Ltd,16651
Chorley Borough Council,http://statistics.data.gov.uk/id/local-authority/30UE,Central and Support Services,,Policy & Governance,Car Leasing Payment,14100,Cash,,NAME REDACTED,06/10/2017,124638,"2,598.75",Revenue,Alphabet (Uk) Fleet Management Ltd,16651
Chorley Borough Council,http://statistics.data.gov.uk/id/local-authority/30UE,Chorley Borough Council,,Policy & Governance,Car Leasing Payment,14100,Net Expenditure or Balance,,,06/10/2017,124638,224.07,Revenue,Alphabet (Uk) Fleet Management Ltd,16651
Chorley Borough Council,http://statistics.data.gov.uk/id/local-authority/30UE,Customer Transformation,,Policy & Governance,Car Leasing Payment,14100,Cash,,NAME REDACTED,06/10/2017,124638,"2,388.96",Revenue,Alphabet (Uk) Fleet Management Ltd,16651
Chorley Borough Council,http://statistics.data.gov.uk/id/local-authority/30UE,Helen Sutton,,Policy & Governance,Car Leasing Payment,14100,Cash,,,06/10/2017,124638,195.62,Revenue,Alphabet (Uk) Fleet Management Ltd,16651
Chorley Borough Council,http://statistics.data.gov.uk/id/local-authority/30UE,Central and Support Services,,Policy & Governance,Car Leasing Payment,14100,Employee Expenses,,NAME REDACTED,06/10/2017,124670,"3,156.01",Revenue,Alphabet (Uk) Fleet Management Ltd,16651
Chorley Borough Council,http://statistics.data.gov.uk/id/local-authority/30UE,Chorley Borough Council,,Policy & Governance,Car Leasing Payment,14100,Net Expenditure or Balance,,,06/10/2017,124670,267.82,Revenue,Alphabet (Uk) Fleet Management Ltd,16651
Chorley Borough Council,http://statistics.data.gov.uk/id/local-authority/30UE,Mgnt & Support Services,,Early Intervention,Professional Fees,40063,Expenditure,,Additional information submitted in support of Cuerden application.,11/10/2017,124313,"1,750.00",Revenue,Alyn Nicholls,76491
Chorley Borough Council,http://statistics.data.gov.uk/id/local-authority/30UE,Chorley Borough Council,,Customer & Digital,Consultants` Fees,40077,Net Expenditure or Balance,,Provide retail planning consultancy in relation to Pines Hotel - Lidl application,20/10/2017,124876,"1,250.00",Revenue,Alyn Nicholls,76491
Chorley Borough Council,http://statistics.data.gov.uk/id/local-authority/30UE,Central and Support Services,,Customer & Digital,Miscellaneous Expenses,40200,Expenditure,,20 X Excel Cat5e data points 1 X 24way CAT5e patch panel 1 X 9u X 450mm wall-mounted comms cabinet c/w 6way pdu Testing,06/10/2017,124505,389.00,Revenue,Ampec,76813
Chorley Borough Council,http://statistics.data.gov.uk/id/local-authority/30UE,Animal & public hlth infectiou,,Early Intervention,Children's Activities,40188,Campaign & Initiative Expenses,,RAUG Summer Activity Day - 16th August.,27/10/2017,125052,500.00,Revenue,Anderton Centre - LOAI,56108
Chorley Borough Council,http://statistics.data.gov.uk/id/local-authority/30UE,Cost of Service,,Early Intervention,Children's Activities,40188,Net Expenditure or Balance,,RUAG Monthly Trip - Anderton Centre - Saturday 30th September.,27/10/2017,125053,500.00,Revenue,Anderton Centre - LOAI,56108
Chorley Borough Council,http://statistics.data.gov.uk/id/local-authority/30UE,Corporate and democratic core,,Policy & Governance,Professional Fees,40063,Professional Fees,,prize money,04/10/2017,124541,300.00,Revenue,Anglezarke Group of Wis,76232
Chorley Borough Council,http://statistics.data.gov.uk/id/local-authority/30UE,ICT Services,,Customer & Digital,Computer Software-Maintenance,40107,Net Expenditure or Balance,,"Base charge for contract ref ANS/4483/529, covering the period 01/10/2017 to 31/12/2019",06/10/2017,124652,761.25,Revenue,ANS Group,22502
Chorley Borough Council,http://statistics.data.gov.uk/id/local-authority/30UE,ICT Services,,Customer & Digital,Computer Software-Maintenance,40107,Expenditure,,"Base charge for contract ref ANS/SOS/01451, covering the period 01/10/2017 to 31/12/2017",06/10/2017,124653,"8,238.75",Revenue,ANS Group,22502
Chorley Borough Council,http://statistics.data.gov.uk/id/local-authority/30UE,Vision,,Customer & Digital,Supplies-Grounds Maintenance,40025,Supplies for Stores,,supply 21 ransommes head pins as per invoice 017181,20/10/2017,124977,440.00,Revenue,Ark Welding Ltd,18154
Chorley Borough Council,http://statistics.data.gov.uk/id/local-authority/30UE,Central and Support Services,,Policy & Governance,IT Software - Annual Licences,40101,Communication and Computing,5028,Extension of Attain Contract for one month,11/10/2017,124602,260.00,Revenue,Attain Group Ltd,61771
Chorley Borough Council,http://statistics.data.gov.uk/id/local-authority/30UE,Unapportionable Central OHeads,1009,Policy & Governance,General Subscriptions,40146,Subscriptions,,"12 month Contract extension based on 33,000 monthly subscribers and unlimited email sends",25/10/2017,124893,"2,334.00",Revenue,Attain Group Ltd,61771
Chorley Borough Council,http://statistics.data.gov.uk/id/local-authority/30UE,Corporate and democratic core,,Policy & Governance,Bank Charges,40151,Net Expenditure or Balance,,cc charges,26/10/2017,124157,757.20,Revenue,Barclaycard Merchant Services,61601
Chorley Borough Council,http://statistics.data.gov.uk/id/local-authority/30UE,Finance,,Policy & Governance,Bank Charges,40151,Net Expenditure or Balance,,cc charges,26/10/2017,124159,263.14,Revenue,Barclaycard Merchant Services,61601
Chorley Borough Council,http://statistics.data.gov.uk/id/local-authority/30UE,Corporate and democratic core,,Policy & Governance,Bank Charges,40151,Net Expenditure or Balance,,cc charges,26/10/2017,124160,"1,107.46",Revenue,Barclaycard Merchant Services,61601
Chorley Borough Council,http://statistics.data.gov.uk/id/local-authority/30UE,Corporate and democratic core,,Policy & Governance,Bank Charges,40151,Cash,,bank charges,26/10/2017,124828,"1,155.61",Revenue,Barclaycard Merchant Services,61601
Chorley Borough Council,http://statistics.data.gov.uk/id/local-authority/30UE,Finance,,Policy & Governance,Bank Charges,40151,Finance & Insurance Expenses,,bank charges,26/10/2017,124829,687.30,Revenue,Barclaycard Merchant Services,61601
Chorley Borough Council,http://statistics.data.gov.uk/id/local-authority/30UE,Hostels (non-HRA support),,Early Intervention,Laundry,40042,Supplies and Services,,"Linen Service at Cotswold Supported Housing, Cotswold Rd, Chorley, PR73HW. This is to cover the period between April 2017 ",06/10/2017,124599,329.20,Revenue,Berendsen UK Ltd,20799
Chorley Borough Council,http://statistics.data.gov.uk/id/local-authority/30UE,Chorley Borough Council,,Business Development & Growth,Manual Control Account,1,Other,,refund,27/10/2017,125098,749.33,Revenue,BES Commercial Electricity Ltd,76115
Chorley Borough Council,http://statistics.data.gov.uk/id/local-authority/30UE,Central and Support Services,,Policy & Governance,External Contractor,40198,Miscellaneous Expenses,5034,Provision of payroll services 2017-2018,18/10/2017,124936,"7,110.54",Revenue,Blackpool Borough Council,16518
Chorley Borough Council,http://statistics.data.gov.uk/id/local-authority/30UE,Customer Transformation,,Customer & Digital,Publicity - Advertising,40157,Net Expenditure or Balance,,Preston and central lancs -councils 17/18 408.97 Preston and central lancs -business 17/18 979.21,20/10/2017,125012,"1,388.18",Revenue,British Telecommunications,18431
Chorley Borough Council,http://statistics.data.gov.uk/id/local-authority/30UE,Employment Skills & Business,,Business Development & Growth,Grants To Other Organisations,40127,Net Expenditure or Balance,,big grant,20/10/2017,124982,"3,000.00",Revenue,Business Source Solutions Ltd,76133
Chorley Borough Council,http://statistics.data.gov.uk/id/local-authority/30UE,Markets & Town Centre,,Business Development & Growth,Stationery,40050,Stationery,,"Please supply 10 x Market receipt books, 4 to a page starting with number 201201",20/10/2017,124756,330.00,Revenue,Calderprint Ltd,17090
Chorley Borough Council,http://statistics.data.gov.uk/id/local-authority/30UE,Fiona Daniels,,Early Intervention,Grants To Other Organisations,40127,Net Expenditure or Balance,,Provision of Accommodation Finding Service - Q3  For period: 1st October 2017 - 31st December 2017,27/10/2017,125136,"6,000.00",Revenue,Calico Enterprise,73338
Chorley Borough Council,http://statistics.data.gov.uk/id/local-authority/30UE,Central and Support Services,,Customer & Digital,Emergency Call Out System,40096,Other Communication Expenses,,Out of hours call charges April 2017,11/10/2017,124676,335.16,Revenue,CallCare Ltd,20257
Chorley Borough Council,http://statistics.data.gov.uk/id/local-authority/30UE,Unapportionable Central OHeads,1009,Customer & Digital,Emergency Call Out System,40096,Cash,,Out of hours standing charge May 2017 (including bank holidays),11/10/2017,124676,120.00,Revenue,CallCare Ltd,20257
Chorley Borough Council,http://statistics.data.gov.uk/id/local-authority/30UE,Central and Support Services,,Policy & Governance,Employee Related Insurance,18003,Net Expenditure or Balance,,insurance,25/10/2017,125041,"1,000.00",Revenue,Canada Life,22284
Chorley Borough Council,http://statistics.data.gov.uk/id/local-authority/30UE,Central and Support Services,,Customer & Digital,Computer Software-Purchase,40100,Expenditure,,Charge for software changes for Small Business Relief Scheme (DCLG 22.06.17).,11/10/2017,124738,"1,800.00",Revenue,Capita Business Services Ltd,17151
Chorley Borough Council,http://statistics.data.gov.uk/id/local-authority/30UE,Early Intervention & Support,,Early Intervention,Grants,3002,Capital Expenditure,,ADDRESS REDACTED,18/10/2017,124810,430.00,Revenue,Carr Faulkner Associates,17493
Chorley Borough Council,http://statistics.data.gov.uk/id/local-authority/30UE,Central and Support Services,,Policy & Governance,Mayors Medals,40029,Materials & Supplies,,20 x hand painted Chorley crest shields @ 22.35 + delivery,18/10/2017,124897,463.00,Revenue,Cavalier,20218
Chorley Borough Council,http://statistics.data.gov.uk/id/local-authority/30UE,Street Services,,Customer & Digital,Supplies - Workshop,40246,Materials & Supplies,,Husqvarna Mulch Blade 295 67 32-10 cutting width 530mm   To be delivered to;  FAO NAME REDACTED Chorley Council Depot,27/10/2017,125026,301.80,Revenue,Cheshire Turf Machinery Ltd,76973
Chorley Borough Council,http://statistics.data.gov.uk/id/local-authority/30UE,Markets & Town Centre,,Business Development & Growth,External Contractors,50008,Cash,, Processing 074 - Provision of Notice Processing Services for period of 01.04.17 - 31.03.18 -Notice Processing Services ,06/10/2017,124515,"1,356.06",Revenue,Chipside Ltd,22063
Chorley Borough Council,http://statistics.data.gov.uk/id/local-authority/30UE,Markets & Town Centre,,Business Development & Growth,External Contractors,50008,Cash,,Processing 075 - Notice to Owner Postage and Packing (estimated) for period of 01.04.17 - 31.03.18,06/10/2017,124515,55.44,Revenue,Chipside Ltd,22063
Chorley Borough Council,http://statistics.data.gov.uk/id/local-authority/30UE,Markets & Town Centre,,Business Development & Growth,External Contractors,50008,Third Party Payments,,Processing 076 - Charge Certificate Postage & Packing (estimated) for period of 01.04.17 - 31.03.18,06/10/2017,124515,15.96,Revenue,Chipside Ltd,22063
Chorley Borough Council,http://statistics.data.gov.uk/id/local-authority/30UE,Markets & Town Centre,,Business Development & Growth,External Contractors,50008,Cash,,Processing 077 - Order for Recovery Postage & Packing (estimated) for period of 01.04.17 - 31.03.18,06/10/2017,124515,4.74,Revenue,Chipside Ltd,22063
Chorley Borough Council,http://statistics.data.gov.uk/id/local-authority/30UE,Markets & Town Centre,,Business Development & Growth,External Contractors,50008,Cash,,Processing 086 - Other Correspondence Postage & Packing (such as responses to Pre & Post NTO/CC/OofR etc). (estimated) ,06/10/2017,124515,90.48,Revenue,Chipside Ltd,22063
Chorley Borough Council,http://statistics.data.gov.uk/id/local-authority/30UE,Corporate and democratic core,,Policy & Governance,Professional Fees,40063,Expenditure,,flower show contribution,06/10/2017,124572,585.00,Revenue,Chorley & District Gardening Society,21287
Chorley Borough Council,http://statistics.data.gov.uk/id/local-authority/30UE,Net Cost of Service,,Early Intervention,Taxi Testing & Vehicle Safety Report,40234,Professional Fees,,mot,20/10/2017,124996,658.20,Revenue,Chorley Autocare Ltd,17110
Chorley Borough Council,http://statistics.data.gov.uk/id/local-authority/30UE,Corporate  Democratic Core,,Early Intervention,Taxi Testing & Vehicle Safety Report,40234,Professional Fees,,taxi test,20/10/2017,124996,102.60,Revenue,Chorley Autocare Ltd,17110
Chorley Borough Council,http://statistics.data.gov.uk/id/local-authority/30UE,Corporate and democratic core,,Policy & Governance,Other Contributions,40145,Contributions,,Contribution towards improvements to the flooring at Chorley Little Theatre to be funded through Avondale Rd Former Free Library,06/10/2017,124672,"17,928.73",Revenue,Chorley Little Theatre,18706
Chorley Borough Council,http://statistics.data.gov.uk/id/local-authority/30UE,Corporate Management,,Policy & Governance,Other Contributions,40145,Expenditure,,Second contribution to Chorley Little Theatre for refurbishment works approved by EMD on 12th Oct 2017,20/10/2017,125010,"22,071.27",Revenue,Chorley Little Theatre,18706
Chorley Borough Council,http://statistics.data.gov.uk/id/local-authority/30UE,Markets & Town Centre,,Business Development & Growth,Fixtures & Fittings - Repair/Mtnce,20028,Cash,,Please supply 2 x Canopy`s for our 3x3m Gazebo`s 295.00 each.,06/10/2017,123977,590.00,Revenue,City B Group Ltd,47300
Chorley Borough Council,http://statistics.data.gov.uk/id/local-authority/30UE,Corporate  Democratic Core,,Business Development & Growth,Tools & Equipment - Maintenance,40005,Expenditure,,Please supply 10 corner legs & 4 centre legs for Gazebo`s @ 25.00 each,06/10/2017,124606,350.00,Revenue,City B Group Ltd,47300
Chorley Borough Council,http://statistics.data.gov.uk/id/local-authority/30UE,Property Services,,Business Development & Growth,General Repairs - Reactive,20004,Expenditure,,2nd Blanket order for Reactive works for 2016.,11/10/2017,124589,"1,338.18",Revenue,Classic Lifts Limited,20897
Chorley Borough Council,http://statistics.data.gov.uk/id/local-authority/30UE,Property Services,,Business Development & Growth,Other Contractor,3012,Capital Expenditure,,Removal of automatic public toilet.,25/10/2017,124938,"9,800.00",Revenue,Clear Channel UK Ltd,19544
Chorley Borough Council,http://statistics.data.gov.uk/id/local-authority/30UE,Mark Lester,,Business Development & Growth,Main Contractor,3007,Net Expenditure or Balance,,Phase 1 - 6 of Yarrow Valley Footpath Works as set out in the Condition of Contract Documentation.,25/10/2017,125023,"11,439.78",Revenue,Conservation Contracts North West,20520
Chorley Borough Council,http://statistics.data.gov.uk/id/local-authority/30UE,Chorley Borough Council,,Business Development & Growth,General Repairs - Reactive,20004,Expenditure,,Blanket Order for reactive repairs WEF 1/4/17,18/10/2017,124789,473.23,Revenue,Corlett Electrical Eng Co Ltd,16271
Chorley Borough Council,http://statistics.data.gov.uk/id/local-authority/30UE,Cost of Service,,Business Development & Growth,Fixtures & Fittings - Purchase,20027,Fixtures and Fittings,,Provide and fix additional lighting in under stairs store at Market Walk Management Suite as discussed on site.,13/10/2017,124798,395.50,Revenue,Corlett Electrical Eng Co Ltd,16271
Chorley Borough Council,http://statistics.data.gov.uk/id/local-authority/30UE,Chorley Council,,Business Development & Growth,External Contractor,40198,Contracting Expenses & Fees,,Attend to install all electrical requirements as requested for flower show and return to disconnect afterwards,18/10/2017,124799,"2,031.24",Revenue,Corlett Electrical Eng Co Ltd,16271
Chorley Borough Council,http://statistics.data.gov.uk/id/local-authority/30UE,Street Services,,Customer & Digital,Grounds Maintenance Contractor,20043,Grounds Maintenance,,for tree work (Removal of a Willow leaning over road) carried out on Southport Road,04/10/2017,124532,300.00,Revenue,Cornthwaite Tree Care,21250
Chorley Borough Council,http://statistics.data.gov.uk/id/local-authority/30UE,General Fund Revenue Account,,Business Development & Growth,Gas,20014,Expenditure,,Butteremere,19/09/2017,122512,735.67,Revenue,Corona Energy Retail 2 Ltd,67249
Chorley Borough Council,http://statistics.data.gov.uk/id/local-authority/30UE,Cultural & Related Services,,Business Development & Growth,Gas,20014,Expenditure,,buttermere,19/09/2017,124555,533.85,Revenue,Corona Energy Retail 2 Ltd,67249
Chorley Borough Council,http://statistics.data.gov.uk/id/local-authority/30UE,Leisure & Neighbourhoods,,Business Development & Growth,Gas,20014,Energy Costs,,buttermere,19/09/2017,124556,550.27,Revenue,Corona Energy Retail 2 Ltd,67249
Chorley Borough Council,http://statistics.data.gov.uk/id/local-authority/30UE,Cultural & Related Services,,Business Development & Growth,Gas,20014,Expenditure,,buttermere,19/09/2017,124557,708.76,Revenue,Corona Energy Retail 2 Ltd,67249
Chorley Borough Council,http://statistics.data.gov.uk/id/local-authority/30UE,Comm centres & public hall,,Business Development & Growth,Gas,20014,Energy Costs,,buttermere,04/10/2017,124558,545.58,Revenue,Corona Energy Retail 2 Ltd,67249
Chorley Borough Council,http://statistics.data.gov.uk/id/local-authority/30UE,Community Centres,,Business Development & Growth,Gas,20014,Cash,,buttermere,04/10/2017,124559,"1,049.25",Revenue,Corona Energy Retail 2 Ltd,67249
Chorley Borough Council,http://statistics.data.gov.uk/id/local-authority/30UE,Civic Services,,Business Development & Growth,Gas,20014,Energy Costs,,union st,25/10/2017,125057,460.38,Revenue,Corona Energy Retail 2 Ltd,67249
Chorley Borough Council,http://statistics.data.gov.uk/id/local-authority/30UE,General Fund Revenue Account,,Business Development & Growth,Gas,20014,Premises Related Expenses,,town hall,25/10/2017,125058,373.54,Revenue,Corona Energy Retail 2 Ltd,67249
Chorley Borough Council,http://statistics.data.gov.uk/id/local-authority/30UE,Leisure and Cultural Services,,Business Development & Growth,Gas,20014,Expenditure,,astley hall,25/10/2017,125059,500.02,Revenue,Corona Energy Retail 2 Ltd,67249
Chorley Borough Council,http://statistics.data.gov.uk/id/local-authority/30UE,Chorley Council,,Business Development & Growth,Gas,20014,Cash,,cotswold house,25/10/2017,125066,504.03,Revenue,Corona Energy Retail 2 Ltd,67249
Chorley Borough Council,http://statistics.data.gov.uk/id/local-authority/30UE,David Tetlow,,Policy & Governance,Fixtures & Fittings - Purchase,20027,Cash,,to NAME REDACTED Please supply blinds as discussed. Thank you. 1xside window 255 1xleaded window 308,20/10/2017,124954,563.00,Revenue,CSC Window Films & Blinds,56388
Chorley Borough Council,http://statistics.data.gov.uk/id/local-authority/30UE,Street Services,,Customer & Digital,Other Contributions,40145,Grants,,ADDRESS REDACTED,04/10/2017,124544,"3,572.40",Revenue,NAME REDACTED,73951
Chorley Borough Council,http://statistics.data.gov.uk/id/local-authority/30UE,Employment Skills & Business,,Business Development & Growth,Grants To Other Organisations,40127,Grants and Subscriptions,5031,sib grant,20/10/2017,124783,250.00,Revenue,NAME REDACTED,76967
Chorley Borough Council,http://statistics.data.gov.uk/id/local-authority/30UE,Chorley Borough Council,,Policy & Governance,NNDR Central Share,2034,Precepts & Collection Fund,Precept,central sahre,26/10/2017,124983,"992,891.00",Revenue,Department of Communities and Local Government,16280
Chorley Borough Council,http://statistics.data.gov.uk/id/local-authority/30UE,Chorley Borough Council,,Policy & Governance,Transitional Protection,2033,Collection Fund Subjectives,,transitional relief,26/10/2017,124983,"186,289.00",Revenue,Department of Communities and Local Government,16280
Chorley Borough Council,http://statistics.data.gov.uk/id/local-authority/30UE,Governance Management,,Business Development & Growth,Main Contractor,3007,Capital Expenditure,,renewal of the quartz walkway at the Covered Market sample 7576,20/10/2017,124420,"38,890.31",Revenue,Deva Resins Ltd,76836
Chorley Borough Council,http://statistics.data.gov.uk/id/local-authority/30UE,"Highways, Roads & Transport Se",,Customer & Digital,Protective Clothing,40040,Clothing,,2 x Dynamic `A` Trousers 1 x Function `A` Trousers 1 pair of Protective Boots 1 pair of Ranger Chainsaw Boots 2 pairs protective,11/10/2017,124486,421.88,Revenue,Dick Leigh,17138
Chorley Borough Council,http://statistics.data.gov.uk/id/local-authority/30UE,Street Services,,Customer & Digital,Other Contributions,40145,Contributions,,ADDRESS REDACTED,20/10/2017,125007,540.00,Revenue,NAME REDACTED,73905
Chorley Borough Council,http://statistics.data.gov.uk/id/local-authority/30UE,Business Development Growth,,Customer & Digital,Main Contractor,3007,Capital Expenditure,Capital,Delivery of the pre-construction service agreement in relation to the Market Walk Extension,20/10/2017,124770,"283,493.91",Revenue,Eric Wright Construction Ltd,76464
Chorley Borough Council,http://statistics.data.gov.uk/id/local-authority/30UE,Chorley Borough Council,,Business Development & Growth,Main Contractor,3007,Other Subjective Codes,,Primrose gardens Valuation Statements,20/10/2017,124842,"481,243.08",Revenue,Eric Wright Construction Ltd,76464
Chorley Borough Council,http://statistics.data.gov.uk/id/local-authority/30UE,Street Services,,Business Development & Growth,External Contractor,40198,Supplies and Services,,grant contribution,20/10/2017,124747,"11,156.04",Revenue,Euxton Parish Council,16838
Chorley Borough Council,http://statistics.data.gov.uk/id/local-authority/30UE,General Fund Revenue Account,,Business Development & Growth,Supplies-Grounds Maintenance,40025,Expenditure,,"Invoice no 155034. Herbaceous, topiary and shrubs for floral displays in Chorley 2017",06/10/2017,124576,997.90,Revenue,Everglades Nurseries Ltd,20202
Chorley Borough Council,http://statistics.data.gov.uk/id/local-authority/30UE,General Fund Revenue Account,,Customer & Digital,Supplies-Grounds Maintenance,40025,Cash,,The Herb Man figure,27/10/2017,125035,400.00,Revenue,Everglades Nurseries Ltd,20202
Chorley Borough Council,http://statistics.data.gov.uk/id/local-authority/30UE,Central and Support Services,,Policy & Governance,HR Approved Training Expenses,17001,Learning & Development,,Coaching Skills for Line Managers Review Sessions,20/10/2017,124948,"1,234.20",Revenue,Evolving Edge Ltd,76455
Chorley Borough Council,http://statistics.data.gov.uk/id/local-authority/30UE,Street Services,,Customer & Digital,Hire Of Vehicles and Plant,30028,Contrct Hire & Operating Lease,,Extending hire for Tractor and flail from 01/09/17 until 30/09/17 (5 Weeks),04/10/2017,124094,"1,416.23",Revenue,F R Sharrock Ltd,18091
Chorley Borough Council,http://statistics.data.gov.uk/id/local-authority/30UE,General Fund Revenue Account,,Customer & Digital,Supplies - Workshop,40246,Supplies for Stores,,For machinery parts as listed in Invoice 124043,04/10/2017,124533,"1,611.85",Revenue,F R Sharrock Ltd,18091
Chorley Borough Council,http://statistics.data.gov.uk/id/local-authority/30UE,Employment Skills & Business,,Business Development & Growth,Grants To Other Organisations,40127,Grants,,grant,20/10/2017,125008,"4,687.50",Revenue,Fir Tree Properties Ltd (Mark Anders),76990
Chorley Borough Council,http://statistics.data.gov.uk/id/local-authority/30UE,Employment Skills & Business,,Business Development & Growth,Professional Fees,40063,Services,5027,Delivery of Architectural/QS services for design of the Chorley Locality Hub project,20/10/2017,124750,"2,100.00",Revenue,Frank Whittle Partnership Limited,76928
Chorley Borough Council,http://statistics.data.gov.uk/id/local-authority/30UE,Street Services,,Customer & Digital,Vehicle Maintenance,30045,Vehicle Repairs & Maintenance,,"Work completed on Invoice 8302089: 2 Axle Road Worthiness Inspection on PL16 LVK",11/10/2017,124643,122.40,Revenue,Freight Transport Assoc Ltd,16333
Chorley Borough Council,http://statistics.data.gov.uk/id/local-authority/30UE,"Highways, Roads & Transport Se",,Customer & Digital,Vehicle Maintenance,30045,Direct Transport Costs,5016,Work completed on Invoice 8302089: 2 Axle Road Worthiness Inspection on PN66 RCU,11/10/2017,124643,122.40,Revenue,Freight Transport Assoc Ltd,16333
Chorley Borough Council,http://statistics.data.gov.uk/id/local-authority/30UE,Street Services,,Customer & Digital,Vehicle Maintenance,30045,Transport Related Expenses,,Work completed as per invoice 8302089. 2 Axled Road Worthiness Inspection on RV14 DVB,11/10/2017,124643,122.40,Revenue,Freight Transport Assoc Ltd,16333
Chorley Borough Council,http://statistics.data.gov.uk/id/local-authority/30UE,"Highways, Roads & Transport Se",,Customer & Digital,Freight Transport Assoc Fees,40150,Subscriptions,,Local Authority Membership as per your invoice 300173498 for the period Sept 2017 - Sept 2018,20/10/2017,124941,982.00,Revenue,Freight Transport Assoc Ltd,16333
Chorley Borough Council,http://statistics.data.gov.uk/id/local-authority/30UE,Parks and Open Spaces,,Customer & Digital,Playground Equipment,40008,Cash,,2 - New style cradle seats 4 - 3.0m aerial runway brake springs 6 - 25kg bags of black rubber crumb - base 1 - Makita 18v battery,13/10/2017,124758,"1,023.20",Revenue,GB Sport & Leisure,21305
Chorley Borough Council,http://statistics.data.gov.uk/id/local-authority/30UE,Development & Regeneration,,Policy & Governance,Main Contractor,3007,Capital Expenditure,,Consultation of conservation for HLF bid.,25/10/2017,125086,"6,750.00",Revenue,Geoff W Maybank,64389
Chorley Borough Council,http://statistics.data.gov.uk/id/local-authority/30UE,Revenue Outturn,,Early Intervention,Vandalism Repairs,20005,Expenditure,,Contract for Graffiti removal 2017,04/10/2017,124316,350.00,Revenue,Graffiti Away,76316
Chorley Borough Council,http://statistics.data.gov.uk/id/local-authority/30UE,Environ & Regulatory Ser,,Early Intervention,Vandalism Repairs,20005,Expenditure,,Contract for Graffiti removal 2017,11/10/2017,124600,"1,190.00",Revenue,Graffiti Away,76316
Chorley Borough Council,http://statistics.data.gov.uk/id/local-authority/30UE,Corporate and democratic core,,Policy & Governance,Professional Fees,40063,Professional Fees,,prize money,25/10/2017,124748,480.00,Revenue,NAME REDACTED,76970
Chorley Borough Council,http://statistics.data.gov.uk/id/local-authority/30UE,General Fund Revenue Account,,Policy & Governance,HM Land Registry Fees,40174,Net Expenditure or Balance,,nhoods,26/10/2017,124307,9.00,Revenue,H M Land Registry,17567
Chorley Borough Council,http://statistics.data.gov.uk/id/local-authority/30UE,Chorley Borough Council,,Policy & Governance,HM Land Registry Fees,40174,Expenditure,,liberata,26/10/2017,124307,62.00,Revenue,H M Land Registry,17567
Chorley Borough Council,http://statistics.data.gov.uk/id/local-authority/30UE,General Fund Revenue Account,,Policy & Governance,HM Land Registry Fees,40174,Miscellaneous Expenses,5034,local tax,26/10/2017,124307,30.00,Revenue,H M Land Registry,17567
Chorley Borough Council,http://statistics.data.gov.uk/id/local-authority/30UE,Chorley Borough Council,,Policy & Governance,HM Land Registry Fees,40174,Expenditure,,planning,26/10/2017,124307,207.00,Revenue,H M Land Registry,17567
Chorley Borough Council,http://statistics.data.gov.uk/id/local-authority/30UE,General Fund Revenue Account,,Policy & Governance,HM Land Registry Fees,40174,Cash,,revs and bens,26/10/2017,124307,9.00,Revenue,H M Land Registry,17567
Chorley Borough Council,http://statistics.data.gov.uk/id/local-authority/30UE,Registration of electors,,Policy & Governance,Service Fees,40056,Cash,,Hera for use with Electoral Registration Canvass 2017,13/10/2017,124771,"1,191.32",Revenue,Halarose Limited,18133
Chorley Borough Council,http://statistics.data.gov.uk/id/local-authority/30UE,Comprehensive I&E Statement,,Customer & Digital,Supplies-Grounds Maintenance,40025,Supplies for Stores,,F14 McConnell Flail,13/10/2017,124772,300.00,Revenue,Halse South West Ltd,76890
Chorley Borough Council,http://statistics.data.gov.uk/id/local-authority/30UE,Street Services,,Customer & Digital,Supplies-Grounds Maintenance,40025,Materials & Supplies,,"Carriage to:  FAO NAME REDACTED Chorley Council Depot Bengal St Depot Chorley PR7 1SA",13/10/2017,124772,20.00,Revenue,Halse South West Ltd,76890
Chorley Borough Council,http://statistics.data.gov.uk/id/local-authority/30UE,Central and Support Services,,Policy & Governance,Miscellaneous Expenses,40200,Expenditure,,healthcare psa settlement,13/10/2017,124811,"7,663.11",Revenue,HM Revenue & Customs,21907
Chorley Borough Council,http://statistics.data.gov.uk/id/local-authority/30UE,Community development,,Business Development & Growth,Refuse Collection,20037,Net Expenditure or Balance,,Waste Compactor Rental Services @ 270.0 per month April 17 - March 18,11/10/2017,124596,270.00,Revenue,J&H Rentals Limited,70699
Chorley Borough Council,http://statistics.data.gov.uk/id/local-authority/30UE,Cost of Service,,Policy & Governance,Statutory Notices,40160,Expenditure,,Public Notice in the Chorley Guardian to confirm the making of the Footpath Diversion Order (Footpath 19 Euxton) 2017,04/10/2017,123979,314.64,Revenue,Johnston Publishing Ltd,20072
Chorley Borough Council,http://statistics.data.gov.uk/id/local-authority/30UE,Paul Whittingham,,Customer & Digital,Statutory Notices,40160,Advertising and Publicity,,Planning Public Notices to appear in the Chorley Guardian April 2017 to March 2018,04/10/2017,124201,367.08,Revenue,Johnston Publishing Ltd,20072
Chorley Borough Council,http://statistics.data.gov.uk/id/local-authority/30UE,Revenue Outturn,,Customer & Digital,Statutory Notices,40160,Expenditure,,Planning Public Notices to appear in the Chorley Guardian April 2017 to March 2018,25/10/2017,124805,367.08,Revenue,Johnston Publishing Ltd,20072
Chorley Borough Council,http://statistics.data.gov.uk/id/local-authority/30UE,Vision,,Policy & Governance,Statutory Notices,40160,Net Expenditure or Balance,,"Public Notice of confirmation of public path order Advert Ref No - NMC2642104",20/10/2017,125001,262.20,Revenue,Johnston Publishing Ltd,20072
Chorley Borough Council,http://statistics.data.gov.uk/id/local-authority/30UE,Street Services,,Customer & Digital,Vehicle Maintenance,30045,Vehicle Repairs & Maintenance,,Complete work listed below as per your order number 8212355:0400 TMS 3004 Maintenance C Service Symptoms/Reported Fault,11/10/2017,124675,"1,019.00",Revenue,Johnston Sweepers Limited,20778
Chorley Borough Council,http://statistics.data.gov.uk/id/local-authority/30UE,Development & Regeneration,,Policy & Governance,Purchase Money,3027,Other,,retention,11/10/2017,124341,"14,950.00",Revenue,Kevills Solicitors,18532
Chorley Borough Council,http://statistics.data.gov.uk/id/local-authority/30UE,Homelessness: Administration,,Early Intervention,External Contractor,40198,Miscellaneous Expenses,5034,Provision of Young Persons Housing Drop-In 2017/2018,06/10/2017,124605,"3,750.00",Revenue,Key,61252
Chorley Borough Council,http://statistics.data.gov.uk/id/local-authority/30UE,Employment Skills & Business,,Business Development & Growth,Grants To Other Organisations,40127,Grants,,ADDRESS REDACTED,20/10/2017,124545,"2,625.00",Revenue,NAME REDACTED,76949
Chorley Borough Council,http://statistics.data.gov.uk/id/local-authority/30UE,Central and Support Services,,Policy & Governance,Exhibitions & Special Events,40158,Advertising and Publicity,,Provision of Firework display to music on Friday 3rd November,25/10/2017,125024,"7,500.00",Revenue,Komodo Fireworks Ltd,72809
Chorley Borough Council,http://statistics.data.gov.uk/id/local-authority/30UE,Holding and Suspense Accs,,Policy & Governance,General Balances,100,Other Subjective Codes,,sal ded,13/10/2017,124835,"1,163.40",Revenue,Labour Councillors Association,17577
Chorley Borough Council,http://statistics.data.gov.uk/id/local-authority/30UE,Community development,,Business Development & Growth,Miscellaneous Expenses,40200,Expenditure,,1-off   specialist report on service charges for Market Walk,06/10/2017,124648,"1,250.00",Revenue,Lambert Smith Hampton (NIreland) Ltd,76717
Chorley Borough Council,http://statistics.data.gov.uk/id/local-authority/30UE,Current Liabilities,,Policy & Governance,LCC Precept,2009,Other,,ctax precept,26/10/2017,125072,"4,438,819.00",Revenue,Lancashire County Council,18386
Chorley Borough Council,http://statistics.data.gov.uk/id/local-authority/30UE,Collection Fund Revenue Accoun,,Policy & Governance,NNDR County Share,2036,Net Expenditure or Balance,,bus rates precept,26/10/2017,125072,"212,477.00",Revenue,Lancashire County Council,18386
Chorley Borough Council,http://statistics.data.gov.uk/id/local-authority/30UE,Vision,,Policy & Governance,Pensions Increase Act Payments,18005,Employees,,cay sept 17,26/10/2017,125120,"17,572.32",Revenue,Lancashire County Council,18386
Chorley Borough Council,http://statistics.data.gov.uk/id/local-authority/30UE,Vicky Willett,,Policy & Governance,Other Fees,40212,Miscellaneous Expenses,5034,4 Weekly Payment for Meals on Wheels Service,06/10/2017,124582,866.30,Revenue,Lancashire Fayre,62967
Chorley Borough Council,http://statistics.data.gov.uk/id/local-authority/30UE,Waste Management,,Customer & Digital,Clinical Waste Collection,50007,Private Contractors,,"Disposal of clinical waste from Chorley   household. April 2017 to March 2018.   Yellow bag collections, approx. 550 per month",18/10/2017,124818,"1,078.44",Revenue,Lancashire Teaching Hospitals NHS FT,19003
Chorley Borough Council,http://statistics.data.gov.uk/id/local-authority/30UE,Vicky Willett,,Policy & Governance,Core Funding Grants,40133,Expenditure,,"Payment for 2nd instalment for Small Commissioning for Advice Services, less rent deducted",25/10/2017,125045,"18,933.00",Revenue,Lancashire West Citizens Advice Bureaux,17035
Chorley Borough Council,http://statistics.data.gov.uk/id/local-authority/30UE,Corporate and democratic core,,Policy & Governance,Grants To Other Organisations,40127,Net Expenditure or Balance,,grant,25/10/2017,125070,250.00,Revenue,Lancaster Court Community Garden Group,58159
Chorley Borough Council,http://statistics.data.gov.uk/id/local-authority/30UE,Current Liabilities,,Policy & Governance,LCFA Precept,2011,Other,,ctax,26/10/2017,124985,"238,081.00",Revenue,Lancs Combined Fire Authority,17768
Chorley Borough Council,http://statistics.data.gov.uk/id/local-authority/30UE,Chorley Borough Council,,Policy & Governance,NNDR Fire Share,2037,Precepts & Collection Fund,Precept,b rates,26/10/2017,124985,"23,608.00",Revenue,Lancs Combined Fire Authority,17768
Chorley Borough Council,http://statistics.data.gov.uk/id/local-authority/30UE,Planning & Development Service,,Policy & Governance,Legal Fees,40171,Expenditure,,Preliminary advice by Simon Pickles in relation to the Pear Tree Lane Public Inquiry,18/10/2017,124891,600.00,Revenue,Landmark Chambers,56730
Chorley Borough Council,http://statistics.data.gov.uk/id/local-authority/30UE,Cost of Service,,Policy & Governance,Legal Fees,40171,Miscellaneous Expenses,5034,NAME REDACTED fee for advising in conference by telephone including agenda and note on 17.08.2017 and revised draft MOU ,18/10/2017,124892,"1,600.00",Revenue,Landmark Chambers,56730
Chorley Borough Council,http://statistics.data.gov.uk/id/local-authority/30UE,Vision,,Policy & Governance,Car Leasing Payment,14100,Expenditure,,"Driver: NAME REDACTED Quote: 6930617 Citroen C4 Cactus 1.6 Blue HDi Flair 5dr (non Start Stop) Hatchback, manual, diesel",25/10/2017,125018,"2,553.93",Revenue,LeasePlan UK Ltd T/A Automotive Leasing,65197
Chorley Borough Council,http://statistics.data.gov.uk/id/local-authority/30UE,Central and Support Services,,Policy & Governance,Car Leasing Payment,14100,Employees,,,25/10/2017,125018,214.74,Revenue,LeasePlan UK Ltd T/A Automotive Leasing,65197
Chorley Borough Council,http://statistics.data.gov.uk/id/local-authority/30UE,Policy & Governance,,Policy & Governance,Car Leasing Payment,14100,Employees,,NAME REDACTED,25/10/2017,125039,"1,923.01",Revenue,LeasePlan UK Ltd T/A Automotive Leasing,65197
Chorley Borough Council,http://statistics.data.gov.uk/id/local-authority/30UE,Central and Support Services,,Policy & Governance,Car Leasing Payment,14100,Expenditure,,,25/10/2017,125039,170.25,Revenue,LeasePlan UK Ltd T/A Automotive Leasing,65197
Chorley Borough Council,http://statistics.data.gov.uk/id/local-authority/30UE,Central and Support Services,,Policy & Governance,Car Leasing Payment,14100,Employees,,NAME REDACTED,06/10/2017,124492,"2,964.60",Revenue,Lex Autolease Ltd,70682
Chorley Borough Council,http://statistics.data.gov.uk/id/local-authority/30UE,"RO6 Protective, Cent & Other",,Policy & Governance,Car Leasing Payment,14100,Expenditure,,,06/10/2017,124492,256.19,Revenue,Lex Autolease Ltd,70682
Chorley Borough Council,http://statistics.data.gov.uk/id/local-authority/30UE,Central and Support Services,,Policy & Governance,Car Leasing Payment,14100,Direct Employee Expenses,5001,NAME REDACTED,06/10/2017,124492,"3,390.00",Revenue,Lex Autolease Ltd,70682
Chorley Borough Council,http://statistics.data.gov.uk/id/local-authority/30UE,Customer Services,,Policy & Governance,Car Leasing Payment,14100,Car Leasing,,,06/10/2017,124492,302.69,Revenue,Lex Autolease Ltd,70682
Chorley Borough Council,http://statistics.data.gov.uk/id/local-authority/30UE,Corporate and democratic core,,Policy & Governance,Car Leasing Payment,14100,Employee Expenses,,Driver: NAME REDACTED  Quote: 20086673/00001 Peugeot 2008 - 1.2 PureTech 110 GT Line 5dr EAT6 Estate Automatic Petrol,06/10/2017,124518,"3,260.76",Revenue,Lex Autolease Ltd,70682
Chorley Borough Council,http://statistics.data.gov.uk/id/local-authority/30UE,Chorley Borough Council,,Policy & Governance,Car Leasing Payment,14100,Expenditure,,,06/10/2017,124518,293.22,Revenue,Lex Autolease Ltd,70682
Chorley Borough Council,http://statistics.data.gov.uk/id/local-authority/30UE,Central and Support Services,,Customer & Digital,Professional Fees,14011,Employees,,Capacity Grid Empty Homes Review 2017.,06/10/2017,123559,"10,368.02",Revenue,Liberata (Capacity Grid),67989
Chorley Borough Council,http://statistics.data.gov.uk/id/local-authority/30UE,Central and Support Services,,Policy & Governance,Exhibitions & Special Events,40158,Net Expenditure or Balance,,Performance within the Town Centre,11/10/2017,124604,270.00,Revenue,Louby Lou Ltd,76335
Chorley Borough Council,http://statistics.data.gov.uk/id/local-authority/30UE,Street Services,,Customer & Digital,Grounds Maintenance Contractor,20043,Grounds Maintenance,,For various tree works as listed in invoice 22,20/10/2017,124963,"2,300.00",Revenue,M J Walker,62044
Chorley Borough Council,http://statistics.data.gov.uk/id/local-authority/30UE,Property Services,,Policy & Governance,Agency Staff,13000,Agency Staff,,AGENCY COST,11/10/2017,124651,801.07,Revenue,Matrix SCM Ltd,22128
Chorley Borough Council,http://statistics.data.gov.uk/id/local-authority/30UE,Cost of Service,,Policy & Governance,Agency Staff,13000,Agency Staff,,AGENCY COST,18/10/2017,124813,"1,564.24",Revenue,Matrix SCM Ltd,22128
Chorley Borough Council,http://statistics.data.gov.uk/id/local-authority/30UE,Central and Support Services,,Policy & Governance,Agency Staff,13000,Direct Employee Expenses,5001,AGENCY COST,18/10/2017,124813,537.28,Revenue,Matrix SCM Ltd,22128
Chorley Borough Council,http://statistics.data.gov.uk/id/local-authority/30UE,Cost of Service,,Policy & Governance,Agency Staff,13000,Agency Staff,,AGENCY COST,27/10/2017,125009,552.00,Revenue,Matrix SCM Ltd,22128
Chorley Borough Council,http://statistics.data.gov.uk/id/local-authority/30UE,Waste & Streetscene Services,,Customer & Digital,Equipment,3014,Other Funds and Balance Sheet,,"240 litre wheel bin. Colour BROWN, with Chorley Council logo.",18/10/2017,124591,"8,680.00",Revenue,MGB Plastics Ltd,18624
Chorley Borough Council,http://statistics.data.gov.uk/id/local-authority/30UE,Chorley Borough Council,,Customer & Digital,Equipment,3014,Other Funds and Balance Sheet,,240 litre wheeled bin. Colour BLUE with Chorley Council logo.,18/10/2017,124592,"8,680.00",Revenue,MGB Plastics Ltd,18624
Chorley Borough Council,http://statistics.data.gov.uk/id/local-authority/30UE,Waste & Streetscene Services,,Customer & Digital,Equipment,3014,Other Funds and Balance Sheet,,"240 litre wheeled bin. Colour GREEN,  with Chorley Council logo.",18/10/2017,124774,"8,680.00",Revenue,MGB Plastics Ltd,18624
Chorley Borough Council,http://statistics.data.gov.uk/id/local-authority/30UE,Health & Wellbeing,,Early Intervention,Grants,3002,Other Subjective Codes,,ADDRESS REDACTED,04/10/2017,124546,"3,753.53",Revenue,Mint Northwest Ltd,65607
Chorley Borough Council,http://statistics.data.gov.uk/id/local-authority/30UE,Housing General Fund,108,Early Intervention,External Contractor,40198,Supplies and Services,,ADDRESS REDACTED,11/10/2017,124709,250.00,Revenue,Mobility Care Services,70841
Chorley Borough Council,http://statistics.data.gov.uk/id/local-authority/30UE,Chorley Borough Council,,Early Intervention,External Contractor,40198,Miscellaneous Expenses,5034,ADDRESS REDACTED,11/10/2017,124710,250.00,Revenue,Mobility Care Services,70841
Chorley Borough Council,http://statistics.data.gov.uk/id/local-authority/30UE,Housing General Fund,108,Early Intervention,External Contractor,40198,Expenditure,,ADDRESS REDACTED,11/10/2017,124711,250.00,Revenue,Mobility Care Services,70841
Chorley Borough Council,http://statistics.data.gov.uk/id/local-authority/30UE,Chorley Borough Council,,Early Intervention,External Contractor,40198,Contracting Expenses & Fees,,ADDRESS REDACTED,11/10/2017,124712,250.00,Revenue,Mobility Care Services,70841
Chorley Borough Council,http://statistics.data.gov.uk/id/local-authority/30UE,Housing General Fund,108,Early Intervention,External Contractor,40198,Contracting Expenses & Fees,,ADDRESS REDACTED,11/10/2017,124713,250.00,Revenue,Mobility Care Services,70841
Chorley Borough Council,http://statistics.data.gov.uk/id/local-authority/30UE,Chorley Borough Council,,Early Intervention,External Contractor,40198,Contracting Expenses & Fees,,heskin in the fields,11/10/2017,124724,460.00,Revenue,Mobility Care Services,70841
Chorley Borough Council,http://statistics.data.gov.uk/id/local-authority/30UE,Housing General Fund,108,Early Intervention,External Contractor,40198,Cash,,ADDRESS REDACTED,11/10/2017,124725,460.00,Revenue,Mobility Care Services,70841
Chorley Borough Council,http://statistics.data.gov.uk/id/local-authority/30UE,Chorley Borough Council,,Early Intervention,External Contractor,40198,Contracting Expenses & Fees,,ADDRESS REDACTED,11/10/2017,124726,260.00,Revenue,Mobility Care Services,70841
Chorley Borough Council,http://statistics.data.gov.uk/id/local-authority/30UE,Housing General Fund,108,Early Intervention,External Contractor,40198,Expenditure,,ADDRESS REDACTED,11/10/2017,124727,280.00,Revenue,Mobility Care Services,70841
Chorley Borough Council,http://statistics.data.gov.uk/id/local-authority/30UE,Housing General Fund,108,Early Intervention,External Contractor,40198,Contracting Expenses & Fees,,ADDRESS REDACTED,11/10/2017,124729,760.00,Revenue,Mobility Care Services,70841
Chorley Borough Council,http://statistics.data.gov.uk/id/local-authority/30UE,Admin of Renovation & Improvem,,Early Intervention,External Contractor,40198,Net Expenditure or Balance,,ADDRESS REDACTED,11/10/2017,124730,920.00,Revenue,Mobility Care Services,70841
Chorley Borough Council,http://statistics.data.gov.uk/id/local-authority/30UE,Housing General Fund,108,Early Intervention,External Contractor,40198,Expenditure,,ADDRESS REDACTED,11/10/2017,124731,395.00,Revenue,Mobility Care Services,70841
Chorley Borough Council,http://statistics.data.gov.uk/id/local-authority/30UE,Admin of Renovation & Improvem,,Early Intervention,External Contractor,40198,Net Expenditure or Balance,,ADDRESS REDACTED,11/10/2017,124732,340.00,Revenue,Mobility Care Services,70841
Chorley Borough Council,http://statistics.data.gov.uk/id/local-authority/30UE,Admin of Renovation & Improvem,,Early Intervention,External Contractor,40198,Net Expenditure or Balance,,ADDRESS REDACTED,11/10/2017,124734,360.00,Revenue,Mobility Care Services,70841
Chorley Borough Council,http://statistics.data.gov.uk/id/local-authority/30UE,Corporate and democratic core,,Customer & Digital,Supplies-Grounds Maintenance,40025,Materials & Supplies,,Work carried out at Westway Car Pak for the Flower Show. Creating a footpath,04/10/2017,124519,350.00,Revenue,Mr Stephen Scambler,16710
Chorley Borough Council,http://statistics.data.gov.uk/id/local-authority/30UE,Central and Support Services,,Policy & Governance,Exhibitions & Special Events,40158,Cash,,"Description:	11000 Silicone Wristbands  Options:	Type: Printed - Size: Large Adult (210mm x 12mm x 2mm) - Band c1 co",04/10/2017,124369,"1,415.70",Revenue,Munco International T/A Adband,60837
Chorley Borough Council,http://statistics.data.gov.uk/id/local-authority/30UE,Chorley Borough Council,,Customer & Digital,Miscellaneous Expenses,40200,Expenditure,,Carry out viability testing on a planning application (ref.17/00490/FULMAJ)  Garside and Son Plumbers ADDRESS REDACTED  ,20/10/2017,124998,"2,500.00",Revenue,Murray Lloyd Associates Ltd,76626
Chorley Borough Council,http://statistics.data.gov.uk/id/local-authority/30UE,Employment Skills & Business,,Business Development & Growth,Miscellaneous Expenses,40200,Miscellaneous Expenses,,Planning and viability advice,20/10/2017,125011,"17,500.00",Revenue,Murray Lloyd Associates Ltd,76626
Chorley Borough Council,http://statistics.data.gov.uk/id/local-authority/30UE,Central and Support Services,,Policy & Governance,Exhibitions & Special Events,40158,Expenditure,,40PP A6 CHORLEY LIVE PROGRAMME Size: A6 Portrait. Artwork: From Press-Ready PDF Supplied with all ticks and bleeds,04/10/2017,124537,"1,100.00",Revenue,N B Colour Print Ltd,17917
Chorley Borough Council,http://statistics.data.gov.uk/id/local-authority/30UE,Corporate and democratic core,,Policy & Governance,Professional Fees,40063,Expenditure,,prize money,25/10/2017,124749,300.00,Revenue,National Begonia Society,76965
Chorley Borough Council,http://statistics.data.gov.uk/id/local-authority/30UE,Corporate and democratic core,,Policy & Governance,Professional Fees,40063,Services,5027,prize money,25/10/2017,124665,300.00,Revenue,National Vegetable Society Lancashire District Ass,76959
Chorley Borough Council,http://statistics.data.gov.uk/id/local-authority/30UE,Central and Support Services,,Early Intervention,Miscellaneous Expenses,40200,Expenditure,,Supply 1 x 800TVL Sony Eiffo digital birdbox camera 28mm and 1 x rechargeable lithium battery,11/10/2017,124487,265.00,Revenue,Nature Cameras Ltd,75659
Chorley Borough Council,http://statistics.data.gov.uk/id/local-authority/30UE,Street Services,,Customer & Digital,Refuse Collection,20037,Net Expenditure or Balance,,Exchange of 20 Street sweeping skips at price quoted from Bengal St depot PR7 1SA,20/10/2017,124848,907.62,Revenue,Neales Waste Management,17583
Chorley Borough Council,http://statistics.data.gov.uk/id/local-authority/30UE,General Fund Revenue Account,,Customer & Digital,Refuse Collection,20037,Cleaning and Domestic Supplies,,Exchange of 35yrd Street cleaning and flytip skip at price quoted from Bengal St depot PR7 1SA,20/10/2017,124848,"1,167.00",Revenue,Neales Waste Management,17583
Chorley Borough Council,http://statistics.data.gov.uk/id/local-authority/30UE,Street Services,,Customer & Digital,Refuse Collection,20037,Net Expenditure or Balance,,Exchange of 35yrd compostable green waste skip at price quoted from Bengal St depot PR7 1SA,20/10/2017,124848,549.50,Revenue,Neales Waste Management,17583
Chorley Borough Council,http://statistics.data.gov.uk/id/local-authority/30UE,General Fund Revenue Account,,Customer & Digital,Refuse Collection,20037,Cleaning and Domestic Supplies,5012,Charge for disposal of compostable green waste at price quoted,20/10/2017,124848,75.00,Revenue,Neales Waste Management,17583
Chorley Borough Council,http://statistics.data.gov.uk/id/local-authority/30UE,Vision,,Business Development & Growth,Refuse Collection,20037,Net Expenditure or Balance,,Market Walk Yard 1 - General Waste compacted - 35 Yard roll on/roll off skip from compactor @64.83 per exchange estimated,20/10/2017,124856,129.66,Revenue,Neales Waste Management,17583
Chorley Borough Council,http://statistics.data.gov.uk/id/local-authority/30UE,Property Management,,Business Development & Growth,Refuse Collection,20037,Cash,,Market Walk Yard 1 general waste compacted - 35 yard roll on/roll off skip from compactor disposal costs per tonne variable dep,20/10/2017,124856,"2,114.10",Revenue,Neales Waste Management,17583
Chorley Borough Council,http://statistics.data.gov.uk/id/local-authority/30UE,Streetscene & Leisure Contract,,Customer & Digital,Vehicle Maintenance,30045,Net Expenditure or Balance,,Your Invoice Number 31790586 dated 19 Aug 2017 for NISSAN NV200 DIESEL 1.5 dCi Acenta Van PL16UUD,20/10/2017,124899,"2,108.72",Revenue,Nissan Finance,76251
Chorley Borough Council,http://statistics.data.gov.uk/id/local-authority/30UE,Street Services,,Customer & Digital,Vehicle Maintenance,30045,Direct Transport Costs,5016,Your Invoice Number 31790581 dated 19 Aug 2017 for NISSAN NV200 DIESEL 1.5 dCi Acenta Van PL16UUF,20/10/2017,124900,"2,108.72",Revenue,Nissan Finance,76251
Chorley Borough Council,http://statistics.data.gov.uk/id/local-authority/30UE,Central and Support Services,,Policy & Governance,Laundry,40042,Net Expenditure or Balance,,Invoice number 437 Table linen laundered and pressed - tea towels laundered collected and returned,18/10/2017,124889,464.00,Revenue,North West Ironing & Laundry Centre,20450
Chorley Borough Council,http://statistics.data.gov.uk/id/local-authority/30UE,Fiona Daniels,,Business Development & Growth,General Subscriptions,40146,Net Expenditure or Balance,,Full Membership of Northern Housing Consortium (01 April 2017- 31 March 2018),04/10/2017,124203,885.00,Revenue,Northern Housing Consortium Ltd,17220
Chorley Borough Council,http://statistics.data.gov.uk/id/local-authority/30UE,General Fund Revenue Account,,Customer & Digital,Vehicle Maintenance,30045,Expenditure,,Please supply Poly/Wire brushes (blue) for our schmidt mini sweepers,20/10/2017,124949,277.80,Revenue,Northern Municipal Spares Ltd,17752
Chorley Borough Council,http://statistics.data.gov.uk/id/local-authority/30UE,"Highways, Roads & Transport Se",,Customer & Digital,Vehicle Maintenance,30045,Vehicle Repairs & Maintenance,,Please supply Poly brushes (yellow) for our schmidt mini sweepers,20/10/2017,124949,194.64,Revenue,Northern Municipal Spares Ltd,17752
Chorley Borough Council,http://statistics.data.gov.uk/id/local-authority/30UE,General Fund Revenue Account,,Customer & Digital,Vehicle Maintenance,30045,Expenditure,,Please supply metal channel brushes for our Johnston large mechanical sweeper,20/10/2017,124950,285.54,Revenue,Northern Municipal Spares Ltd,17752
Chorley Borough Council,http://statistics.data.gov.uk/id/local-authority/30UE,"Highways, Roads & Transport Se",,Customer & Digital,Vehicle Maintenance,30045,Expenditure,,Please supply a one piece belly brush for our Johnston large mechanical sweeper.,20/10/2017,124950,87.05,Revenue,Northern Municipal Spares Ltd,17752
Chorley Borough Council,http://statistics.data.gov.uk/id/local-authority/30UE,Neighbourhoods,,Business Development & Growth,Electricity,20013,Energy Costs,,car park,11/10/2017,124786,1.05,Revenue,Npower Commercial Gas,16814
Chorley Borough Council,http://statistics.data.gov.uk/id/local-authority/30UE,Streetscene Neighbourhoods Env,,Business Development & Growth,Electricity,20013,Expenditure,,car park,11/10/2017,124786,106.46,Revenue,Npower Commercial Gas,16814
Chorley Borough Council,http://statistics.data.gov.uk/id/local-authority/30UE,General Fund Revenue Account,,Business Development & Growth,Electricity,20013,Cash,,cctv,11/10/2017,124786,263.40,Revenue,Npower Commercial Gas,16814
Chorley Borough Council,http://statistics.data.gov.uk/id/local-authority/30UE,Governance,,Business Development & Growth,Electricity,20013,Premises Related Expenses,,union st,11/10/2017,124787,"3,293.81",Revenue,Npower Commercial Gas,16814
Chorley Borough Council,http://statistics.data.gov.uk/id/local-authority/30UE,Chorley Borough Council,,Business Development & Growth,Electricity,20013,Net Expenditure or Balance,,bengal st,11/10/2017,124787,752.59,Revenue,Npower Commercial Gas,16814
Chorley Borough Council,http://statistics.data.gov.uk/id/local-authority/30UE,Governance,,Business Development & Growth,Electricity,20013,Premises Related Expenses,,town hall,11/10/2017,124787,"1,735.38",Revenue,Npower Commercial Gas,16814
Chorley Borough Council,http://statistics.data.gov.uk/id/local-authority/30UE,Chorley Borough Council,,Business Development & Growth,Electricity,20013,Premises Related Expenses,,tunley holme,11/10/2017,124787,137.21,Revenue,Npower Commercial Gas,16814
Chorley Borough Council,http://statistics.data.gov.uk/id/local-authority/30UE,Parks and Open Spaces,,Business Development & Growth,Electricity,20013,Expenditure,,harpers lane,20/10/2017,124935,2.67,Revenue,Npower Commercial Gas,16814
Chorley Borough Council,http://statistics.data.gov.uk/id/local-authority/30UE,General Fund Revenue Account,,Business Development & Growth,Electricity,20013,Expenditure,,tatton rec,20/10/2017,124935,9.53,Revenue,Npower Commercial Gas,16814
Chorley Borough Council,http://statistics.data.gov.uk/id/local-authority/30UE,Chorley Council,,Business Development & Growth,Electricity,20013,Expenditure,,gillet playing fields,20/10/2017,124935,4.42,Revenue,Npower Commercial Gas,16814
Chorley Borough Council,http://statistics.data.gov.uk/id/local-authority/30UE,Chief Executive,,Business Development & Growth,Electricity,20013,Premises Related Expenses,,king george,20/10/2017,124935,3.37,Revenue,Npower Commercial Gas,16814
Chorley Borough Council,http://statistics.data.gov.uk/id/local-authority/30UE,Streetscene Neighbourhoods Env,,Business Development & Growth,Electricity,20013,Energy Costs,5006,astley hall farm,20/10/2017,124935,73.57,Revenue,Npower Commercial Gas,16814
Chorley Borough Council,http://statistics.data.gov.uk/id/local-authority/30UE,Chief Executive,,Business Development & Growth,Electricity,20013,Energy Costs,,astley hall,20/10/2017,124935,75.90,Revenue,Npower Commercial Gas,16814
Chorley Borough Council,http://statistics.data.gov.uk/id/local-authority/30UE,Community Centres,,Business Development & Growth,Electricity,20013,Expenditure,,eaves green,20/10/2017,124935,394.69,Revenue,Npower Commercial Gas,16814
Chorley Borough Council,http://statistics.data.gov.uk/id/local-authority/30UE,Business Improvement,,Business Development & Growth,Electricity,20013,Net Expenditure or Balance,,35-39 market street,20/10/2017,124935,81.30,Revenue,Npower Commercial Gas,16814
Chorley Borough Council,http://statistics.data.gov.uk/id/local-authority/30UE,Finance,,Business Development & Growth,Electricity,20013,Expenditure,,tatton rec,20/10/2017,124935,38.87,Revenue,Npower Commercial Gas,16814
Chorley Borough Council,http://statistics.data.gov.uk/id/local-authority/30UE,Finance,,Business Development & Growth,Electricity,20013,Expenditure,,35-39 market street,20/10/2017,124935,58.15,Revenue,Npower Commercial Gas,16814
Chorley Borough Council,http://statistics.data.gov.uk/id/local-authority/30UE,Parks and Open Spaces,,Business Development & Growth,Electricity,20013,Expenditure,,coronation rec,20/10/2017,124935,16.21,Revenue,Npower Commercial Gas,16814
Chorley Borough Council,http://statistics.data.gov.uk/id/local-authority/30UE,General Fund Revenue Account,,Business Development & Growth,Electricity,20013,Cash,,astley village cc,20/10/2017,124935,126.61,Revenue,Npower Commercial Gas,16814
Chorley Borough Council,http://statistics.data.gov.uk/id/local-authority/30UE,Parks and Open Spaces,,Business Development & Growth,Electricity,20013,Energy Costs,,astley hall coach house,20/10/2017,124935,894.03,Revenue,Npower Commercial Gas,16814
Chorley Borough Council,http://statistics.data.gov.uk/id/local-authority/30UE,Chief Executive,,Business Development & Growth,Electricity,20013,Expenditure,,astley hall cottage,20/10/2017,124935,67.95,Revenue,Npower Commercial Gas,16814
Chorley Borough Council,http://statistics.data.gov.uk/id/local-authority/30UE,Chief Executive,,Business Development & Growth,Electricity,20013,Net Expenditure or Balance,,cemetry chapel,20/10/2017,124935,2.66,Revenue,Npower Commercial Gas,16814
Chorley Borough Council,http://statistics.data.gov.uk/id/local-authority/30UE,Chief Executive,,Business Development & Growth,Electricity,20013,Energy Costs,,cemetry chapel,20/10/2017,124935,2.06,Revenue,Npower Commercial Gas,16814
Chorley Borough Council,http://statistics.data.gov.uk/id/local-authority/30UE,Bereavement Services,,Business Development & Growth,Electricity,20013,Premises Related Expenses,,cemetries office,20/10/2017,124935,30.23,Revenue,Npower Commercial Gas,16814
Chorley Borough Council,http://statistics.data.gov.uk/id/local-authority/30UE,General Fund Revenue Account,,Business Development & Growth,Electricity,20013,Premises Related Expenses,,astley park,20/10/2017,124935,274.34,Revenue,Npower Commercial Gas,16814
Chorley Borough Council,http://statistics.data.gov.uk/id/local-authority/30UE,Economic Regeneration,,Business Development & Growth,Electricity,20013,Net Expenditure or Balance,,market compactor,20/10/2017,124935,80.59,Revenue,Npower Commercial Gas,16814
Chorley Borough Council,http://statistics.data.gov.uk/id/local-authority/30UE,Chief Executive,,Business Development & Growth,Electricity,20013,Premises Related Expenses,,king george,20/10/2017,124935,6.55,Revenue,Npower Commercial Gas,16814
Chorley Borough Council,http://statistics.data.gov.uk/id/local-authority/30UE,Economic Regeneration,,Business Development & Growth,Electricity,20013,Cash,,portacabin,20/10/2017,124935,2.66,Revenue,Npower Commercial Gas,16814
Chorley Borough Council,http://statistics.data.gov.uk/id/local-authority/30UE,Chief Executive,,Business Development & Growth,Electricity,20013,Expenditure,,cotsowld house,20/10/2017,124935,394.62,Revenue,Npower Commercial Gas,16814
Chorley Borough Council,http://statistics.data.gov.uk/id/local-authority/30UE,Strategic Housing,,Business Development & Growth,Electricity,20013,Energy Costs,,cotswold house,20/10/2017,124935,156.50,Revenue,Npower Commercial Gas,16814
Chorley Borough Council,http://statistics.data.gov.uk/id/local-authority/30UE,Chief Executive,,Business Development & Growth,Electricity,20013,Premises Related Expenses,,cotsowld house,20/10/2017,124935,62.68,Revenue,Npower Commercial Gas,16814
Chorley Borough Council,http://statistics.data.gov.uk/id/local-authority/30UE,Community Centres,,Business Development & Growth,Electricity,20013,Net Expenditure or Balance,,buttermere,20/10/2017,124935,89.19,Revenue,Npower Commercial Gas,16814
Chorley Borough Council,http://statistics.data.gov.uk/id/local-authority/30UE,General Fund Revenue Account,,Business Development & Growth,Electricity,20013,Energy Costs,,buckshaw,20/10/2017,124935,83.36,Revenue,Npower Commercial Gas,16814
Chorley Borough Council,http://statistics.data.gov.uk/id/local-authority/30UE,Parks and Open Spaces,,Business Development & Growth,Electricity,20013,Expenditure,,rangletts rec,20/10/2017,124935,15.27,Revenue,Npower Commercial Gas,16814
Chorley Borough Council,http://statistics.data.gov.uk/id/local-authority/30UE,Business Development Growth,,Business Development & Growth,External Contractors,50008,Private Contractors,5042,"Vari fee for extra enforcement (May, June, July, August & Sept 17)",11/10/2017,124673,949.82,Revenue,NSL Limited,67253
Chorley Borough Council,http://statistics.data.gov.uk/id/local-authority/30UE,Markets & Town Centre,,Business Development & Growth,External Contractors,50008,Private Contractors,5042,"Provision of off street car park enforcement, cash collection, cash  counting facilities and third party bulk cash collections for April",11/10/2017,124674,"3,784.23",Revenue,NSL Limited,67253
Chorley Borough Council,http://statistics.data.gov.uk/id/local-authority/30UE,Central and Support Services,,Policy & Governance,HR Approved Training Expenses,17001,Learning & Development,,Commercialism in Local Government half day course 06/09/17,27/10/2017,125099,505.60,Revenue,Nwlaeo,17571
Chorley Borough Council,http://statistics.data.gov.uk/id/local-authority/30UE,Corporate and democratic core,,Policy & Governance,Professional Fees,40063,Services,5027,Demonstration of Oak Swill Basket Making,06/10/2017,124603,340.00,Revenue,NAME REDACTED,76956
Chorley Borough Council,http://statistics.data.gov.uk/id/local-authority/30UE,Central and Support Services,,Policy & Governance,Service Fees,40056,Net Expenditure or Balance,,Lung Function Spirometry HS x 6 - September 2017,11/10/2017,124679,255.00,Revenue,People Asset Management Limited,76487
Chorley Borough Council,http://statistics.data.gov.uk/id/local-authority/30UE,Capital Fund,,Business Development & Growth,Other Capital Related Fees,3024,Other,,Primrose Gardens August 2017,04/10/2017,123982,"1,896.00",Revenue,Perfect Circle JV Ltd,76438
Chorley Borough Council,http://statistics.data.gov.uk/id/local-authority/30UE,Capital Fund,,Business Development & Growth,Other Capital Related Fees,3024,Net Expenditure or Balance,,Primrose Gardens September 2017,04/10/2017,124445,"2,432.25",Revenue,Perfect Circle JV Ltd,76438
Chorley Borough Council,http://statistics.data.gov.uk/id/local-authority/30UE,Capital Fund,,Business Development & Growth,Other Capital Related Fees,3024,Other,,Primrose Gardens October 2017,11/10/2017,124601,"1,896.00",Revenue,Perfect Circle JV Ltd,76438
Chorley Borough Council,http://statistics.data.gov.uk/id/local-authority/30UE,Chorley Borough Council,,Customer & Digital,Supplies-Grounds Maintenance,40025,Net Expenditure or Balance,,"Please supply handi-reacher long, 76 cm, 091114388 as per your e-mail quote dated 17/07/2017 @ 9.66",27/10/2017,125076,144.90,Revenue,Performance Health Ltd,76826
Chorley Borough Council,http://statistics.data.gov.uk/id/local-authority/30UE,"Highways, Roads & Transport Se",,Customer & Digital,Supplies-Grounds Maintenance,40025,Net Expenditure or Balance,,"Please supply handi-reacher extra long, 90 cm, 091114412 as per your e-mail quote dated 17/07/2017 @ 9.93",27/10/2017,125076,148.95,Revenue,Performance Health Ltd,76826
Chorley Borough Council,http://statistics.data.gov.uk/id/local-authority/30UE,Central and Support Services,,Early Intervention,External Contractor,40198,Contracting Expenses & Fees,,Pest Control Duties within Chorley Council,04/10/2017,124521,340.00,Revenue,Peter L Johnson,16727
Chorley Borough Council,http://statistics.data.gov.uk/id/local-authority/30UE,Cost of Service,,Early Intervention,External Contractor,40198,Cash,,Pest Control Duties within Chorley Council,11/10/2017,124612,340.00,Revenue,Peter L Johnson,16727
Chorley Borough Council,http://statistics.data.gov.uk/id/local-authority/30UE,Property Services,,Customer & Digital,Consultants Fees,3025,Capital Expenditure,,"Quantity surveying services for market walk - 43,056 over an 18 month period",06/10/2017,124577,"2,704.00",Revenue,Pick Everard,76515
Chorley Borough Council,http://statistics.data.gov.uk/id/local-authority/30UE,Chorley Borough Council,,Customer & Digital,Consultants Fees,3025,Capital Expenditure,,"Project management services for market walk - 111,384 over an 18 month period",06/10/2017,124578,"5,408.00",Revenue,Pick Everard,76515
Chorley Borough Council,http://statistics.data.gov.uk/id/local-authority/30UE,Leisure and Cultural Services,,Customer & Digital,Consultants Fees,3025,Capital Expenditure,,"Quantity surveying services for market walk - 43,056 over an 18 month period",20/10/2017,124946,"2,704.00",Revenue,Pick Everard,76515
Chorley Borough Council,http://statistics.data.gov.uk/id/local-authority/30UE,Chief Executives,,Customer & Digital,Consultants Fees,3025,Other Subjective Codes,,"Project management services for market walk - 111,384 over an 18 month period",20/10/2017,124947,"5,408.00",Revenue,Pick Everard,76515
Chorley Borough Council,http://statistics.data.gov.uk/id/local-authority/30UE,Chorley Borough Council,,Customer & Digital,Consultants Fees,3025,Capital Expenditure,,"Quantity surveying services for market walk - 43,056 over an 18 month period",20/10/2017,124997,"2,704.00",Revenue,Pick Everard,76515
Chorley Borough Council,http://statistics.data.gov.uk/id/local-authority/30UE,Chief Executives,,Customer & Digital,Consultants Fees,3025,Capital Expenditure,,"Project management services for market walk - 111,384 over an 18 month period",20/10/2017,124999,"5,408.00",Revenue,Pick Everard,76515
Chorley Borough Council,http://statistics.data.gov.uk/id/local-authority/30UE,Current Liabilities,,Policy & Governance,LPA Precept,2010,Other,,ctax precept,26/10/2017,124986,"601,241.00",Revenue,Police & Crime Commissioner,17438
Chorley Borough Council,http://statistics.data.gov.uk/id/local-authority/30UE,General Fund Revenue Account,,Early Intervention,Safety Signs And Posters,40017,Cash,,credited,12/10/2017,124804,"1,364.43",Revenue,Poppy Signs Ltd,21898
Chorley Borough Council,http://statistics.data.gov.uk/id/local-authority/30UE,General Fund Revenue Account,,Business Development & Growth,Miscellaneous Expenses,40200,Miscellaneous Expenses,,ref 9487/2 BATCH OF 2 MESH banner for the fence at Bengal Street and on the Flat Iron car park Finished size 290cm x 158cm,20/10/2017,124806,380.13,Revenue,Poppy Signs Ltd,21898
Chorley Borough Council,http://statistics.data.gov.uk/id/local-authority/30UE,Cost of Service,,Business Development & Growth,Signs:Provision & Maintenance,20065,Cash,,Market Walk Hoardings - Alternative route sign A6 Map as per quote ref 9603/1 Total for Batch 2 signs 10ft x 5ft Full colour digital,20/10/2017,124807,558.68,Revenue,Poppy Signs Ltd,21898
Chorley Borough Council,http://statistics.data.gov.uk/id/local-authority/30UE,Central & Support Appointments,1009,Policy & Governance,Exhibitions & Special Events,40158,Net Expenditure or Balance,,"10 MEDIUM Teardrop Banner, price each based on all designs being the same Including Pole, bag, printed banner wraparound",18/10/2017,124881,840.50,Revenue,Poppy Signs Ltd,21898
Chorley Borough Council,http://statistics.data.gov.uk/id/local-authority/30UE,Governance,,Policy & Governance,Refreshments,40036,Food,,"Supply, Sanitation, provision of cups and water for all Pressure Coolers for Council Sites for the month of November 2017",04/10/2017,124333,373.80,Revenue,Pressure Coolers Ltd T/A Maestro International Ltd,19767
Chorley Borough Council,http://statistics.data.gov.uk/id/local-authority/30UE,Civic Services,,Policy & Governance,Refreshments,40036,Net Expenditure or Balance,,"Supply, Sanitation, provision of cups and water for all Pressure Coolers for Council Sites for the month of December 2017",18/10/2017,124658,571.80,Revenue,Pressure Coolers Ltd T/A Maestro International Ltd,19767
Chorley Borough Council,http://statistics.data.gov.uk/id/local-authority/30UE,Private Sector Housing Renewal,,Early Intervention,Miscellaneous Expenses,40200,Net Expenditure or Balance,,Materials for draught-proofing (to be carried out under the LCC Affordable Warmth Grant fund),27/10/2017,125074,500.00,Revenue,Preston Care and Repair,50018
Chorley Borough Council,http://statistics.data.gov.uk/id/local-authority/30UE,Cost of Service,,Early Intervention,External Contractor,40198,Miscellaneous Expenses,5034,Provision of Handyperson Services (funded by LCC IHIS) Q3 2017/18 from 1/10/17 to 31/12/17,27/10/2017,125075,"7,225.00",Revenue,Preston Care and Repair,50018
Chorley Borough Council,http://statistics.data.gov.uk/id/local-authority/30UE,Chorley Borough Council,,Policy & Governance,General Balances,100,Other,,sal ded,13/10/2017,124836,"2,701.83",Revenue,PRUDENTIAL,18178
Chorley Borough Council,http://statistics.data.gov.uk/id/local-authority/30UE,Angela Barrago,,Early Intervention,Refreshments,40036,Expenditure,,Review of Leisure centre contract.,11/10/2017,124636,"2,750.00",Revenue,Pulse Regeneration Ltd,76917
Chorley Borough Council,http://statistics.data.gov.uk/id/local-authority/30UE,Corporate and democratic core,,Policy & Governance,Grants To Other Organisations,40127,Net Expenditure or Balance,,grant,25/10/2017,125071,250.00,Revenue,Red Bank Scout Group,16846
Chorley Borough Council,http://statistics.data.gov.uk/id/local-authority/30UE,Control Accounts,Control,Policy & Governance,General Balances,100,General Balances,,childacre vouchers,26/10/2017,123956,"4,300.08",Revenue,Reward Gateway (UK) Ltd,66814
Chorley Borough Council,http://statistics.data.gov.uk/id/local-authority/30UE,Chorley Borough Council,,Policy & Governance,General Balances,100,Balance Sheet,Balance,childacare vouchers,26/10/2017,124632,"4,537.33",Revenue,Reward Gateway (UK) Ltd,66814
Chorley Borough Council,http://statistics.data.gov.uk/id/local-authority/30UE,Redistrib non-domestic rates,,Policy & Governance,Tariff to Business Rates Pool,49002,Net Expenditure or Balance,,bus rates pool,26/10/2017,124987,"496,251.00",Revenue,Ribble Valley Borough Council,21100
Chorley Borough Council,http://statistics.data.gov.uk/id/local-authority/30UE,Registration of electors,,Policy & Governance,Postages,40082,Communications,,business reply RRHA-KZCB-CAXA September 2017 - March 2017,04/10/2017,124504,"1,029.82",Revenue,Royal Mail Group Plc,17522
Chorley Borough Council,http://statistics.data.gov.uk/id/local-authority/30UE,Street Services,,Customer & Digital,Other Contributions,40145,Expenditure,,ADDRESS REDACTED,11/10/2017,124780,"4,410.00",Revenue,NAME REDACTED,73877
Chorley Borough Council,http://statistics.data.gov.uk/id/local-authority/30UE,Street Services,,Customer & Digital,Diesel/Derv,30007,Net Expenditure or Balance,,Please supply 7000 litres of road diesel at the unit price of 95.95 pence per litre (as per your quote on The Chest),13/10/2017,124784,"6,716.50",Revenue,Samuel Cooke & Co Ltd,17173
Chorley Borough Council,http://statistics.data.gov.uk/id/local-authority/30UE,Vision,,Customer & Digital,Diesel/Derv,30007,Transport Running Costs,,Please supply 3500 litres of gas oil at the unit price of 49.25 pence per litre (as per your quote on The Chest),13/10/2017,124785,"1,477.50",Revenue,Samuel Cooke & Co Ltd,17173
Chorley Borough Council,http://statistics.data.gov.uk/id/local-authority/30UE,David Tetlow,,Policy & Governance,Exhibitions,40176,Event Expenses,,British Wildlife Photography Awards exhibition 2017 - final payment,04/10/2017,124482,655.00,Revenue,Sanders Exhibition Service Ltd,76737
Chorley Borough Council,http://statistics.data.gov.uk/id/local-authority/30UE,Business,,Early Intervention,External Contractor,40198,Expenditure,,"For concierge service at Cotswold Supported Housing, Cotswold Road, Chorley, PR7 3HW. This is for the period of August 2017",11/10/2017,124522,"2,351.33",Revenue,Sector Security Services,19269
Chorley Borough Council,http://statistics.data.gov.uk/id/local-authority/30UE,Chorley Borough Council,,Policy & Governance,General Subscriptions,40146,Subscriptions,,17/18 charges,27/10/2017,122390,500.00,Revenue,Sefton MBC,20443
Chorley Borough Council,http://statistics.data.gov.uk/id/local-authority/30UE,Central and Support Services,,Policy & Governance,Miscellaneous Expenses,40200,Miscellaneous Expenses,,Film and produce a promotional video to encourage visitors to Chorley as part of the check out Chorley campaign,25/10/2017,124637,850.00,Revenue,SkyOptics Ltd,76623
Chorley Borough Council,http://statistics.data.gov.uk/id/local-authority/30UE,Central and Support Services,,Policy & Governance,Exhibitions & Special Events,40158,Expenditure,,Hire of the Boom Bikes to Promote Chorley Live 2017,11/10/2017,124681,650.00,Revenue,Sound Intervention Ltd,65504
Chorley Borough Council,http://statistics.data.gov.uk/id/local-authority/30UE,General Fund Revenue Account,,Policy & Governance,Service Fees to other Local Authorities,40076,Expenditure,,Provision of Shared Assurance Services for the period 1st April 2017 - 31st March 2018,13/10/2017,124759,"45,000.00",Revenue,South Ribble Borough Council,17889
Chorley Borough Council,http://statistics.data.gov.uk/id/local-authority/30UE,Chorley Borough Council,,Policy & Governance,Legal Fees,40171,Cash,,50% recharge for Counsel advice in relation to shared management structures,20/10/2017,124875,500.00,Revenue,South Ribble Borough Council,17889
Chorley Borough Council,http://statistics.data.gov.uk/id/local-authority/30UE,Street Services,,Customer & Digital,Training Course Fees,17010,Net Expenditure or Balance,,For 3 days of tractor and flail training,20/10/2017,124964,"1,215.00",Revenue,Specialized Training,61305
Chorley Borough Council,http://statistics.data.gov.uk/id/local-authority/30UE,Policy and Performance,,Policy & Governance,Other Contributions,40145,Expenditure,,Provision of temporary 7C bus service extended period,20/10/2017,124594,"7,572.80",Revenue,Stagecoach Services Limited,18598
Chorley Borough Council,http://statistics.data.gov.uk/id/local-authority/30UE,Property & Assets,,Business Development & Growth,Other Capital Related Fees,3024,Other,,Provision of Public Realm & Highway Design Engineering services as per contract for period of 30 months from w/c 5th June 2017,06/10/2017,124585,"2,700.00",Revenue,Street Civil Engineering Limited,76750
Chorley Borough Council,http://statistics.data.gov.uk/id/local-authority/30UE,Recreation & Sport,1037,Business Development & Growth,Fixtures & Fittings - Purchase,20027,Fixtures and Fittings,5010,carry out works in store as per your quotation CC129. Trim visqueen from floor and patch screed cracks in concrete. Return,04/10/2017,124335,495.00,Revenue,Stringfellow Bldg Cntrctrs Ltd,17893
Chorley Borough Council,http://statistics.data.gov.uk/id/local-authority/30UE,Central Support Services,1009,Business Development & Growth,General Repairs - Reactive,20004,Net Expenditure or Balance,,Blanket order for reactive repairs from June 2017,04/10/2017,124429,549.38,Revenue,Stringfellow Bldg Cntrctrs Ltd,17893
Chorley Borough Council,http://statistics.data.gov.uk/id/local-authority/30UE,Chorley Borough Council,,Business Development & Growth,Main Contractor,3007,Net Expenditure or Balance,,"Building works at ADDRESS REDACTED as below   1.	Plaster and redecorate 2.	Replace WC�s and WHB 3.	Tidy up pipework from",06/10/2017,124617,"9,380.00",Revenue,Stringfellow Bldg Cntrctrs Ltd,17893
Chorley Borough Council,http://statistics.data.gov.uk/id/local-authority/30UE,Chorley Borough Council,,Business Development & Growth,Miscellaneous Expenses,40200,Cash,,work stations Buttermere - 325.00 and 450.00 Lancaster Way - 890.00 Clayton Brook - 600,18/10/2017,124659,"1,815.00",Revenue,Stringfellow Bldg Cntrctrs Ltd,17893
Chorley Borough Council,http://statistics.data.gov.uk/id/local-authority/30UE,Property Management,,Business Development & Growth,General Repairs - Reactive,20004,Cash,,blanket order for reactive repairs on all sites,20/10/2017,124923,301.69,Revenue,Stringfellow Bldg Cntrctrs Ltd,17893
Chorley Borough Council,http://statistics.data.gov.uk/id/local-authority/30UE,General Fund Revenue Account,,Business Development & Growth,General Repairs - Reactive,20004,Expenditure,,blanket order for reactive repairs on all sites,20/10/2017,124931,299.60,Revenue,Stringfellow Bldg Cntrctrs Ltd,17893
Chorley Borough Council,http://statistics.data.gov.uk/id/local-authority/30UE,Parks and Open Spaces,,Business Development & Growth,Professional Fees,40063,Cash,,"Ground Investigation works at the rear of 79 The Oaks, Chorley as per your quotation E2256. Please contact the occupier NAME",20/10/2017,124901,"2,793.00",Revenue,Sub Surface North West Limited,55367
Chorley Borough Council,http://statistics.data.gov.uk/id/local-authority/30UE,Strategic Housing,,Early Intervention,Tools & Equipment - Purchase,40003,Tools and Equipment,,"2-Ply Interfold Towels White, 3200 per case",11/10/2017,124677,31.50,Revenue,Swiftkleen Ltd,17933
Chorley Borough Council,http://statistics.data.gov.uk/id/local-authority/30UE,Strategic Housing,,Early Intervention,Tools & Equipment - Purchase,40003,Tools and Equipment,,Black Refuse Sacks 180g (Heavy Duty) pack of 200,11/10/2017,124677,23.40,Revenue,Swiftkleen Ltd,17933
Chorley Borough Council,http://statistics.data.gov.uk/id/local-authority/30UE,Strategic Housing,,Early Intervention,Tools & Equipment - Purchase,40003,Tools and Equipment,,Sirius Mini Jumbo Toilet Rolls 200m x 90mm (Pack of 12),11/10/2017,124677,34.44,Revenue,Swiftkleen Ltd,17933
Chorley Borough Council,http://statistics.data.gov.uk/id/local-authority/30UE,Strategic Housing,,Early Intervention,Tools & Equipment - Purchase,40003,Supplies and Services,,Stand-up Long Life Gel Air Freshener (any fragrance) - Case of 12,11/10/2017,124677,3.36,Revenue,Swiftkleen Ltd,17933
Chorley Borough Council,http://statistics.data.gov.uk/id/local-authority/30UE,Strategic Housing,,Early Intervention,Cleaning Materials,40019,Net Expenditure or Balance,,Evans Vanodine Aerosol Air Freshener 400ml - Apple Fragrance,11/10/2017,124677,15.75,Revenue,Swiftkleen Ltd,17933
Chorley Borough Council,http://statistics.data.gov.uk/id/local-authority/30UE,Chorley Council,,Early Intervention,Tools & Equipment - Purchase,40003,Tools and Equipment,,Glade Vacuum Fresh fragrance sachets - pack of 3,11/10/2017,124677,3.52,Revenue,Swiftkleen Ltd,17933
Chorley Borough Council,http://statistics.data.gov.uk/id/local-authority/30UE,Strategic Housing,,Early Intervention,Tools & Equipment - Purchase,40003,Supplies and Services,,Blue Nitrile disposable gloves (Medium),11/10/2017,124677,11.80,Revenue,Swiftkleen Ltd,17933
Chorley Borough Council,http://statistics.data.gov.uk/id/local-authority/30UE,Chorley Council,,Early Intervention,Tools & Equipment - Purchase,40003,Tools and Equipment,,Colour Coded Dish Cloths - pack of 10,11/10/2017,124677,5.97,Revenue,Swiftkleen Ltd,17933
Chorley Borough Council,http://statistics.data.gov.uk/id/local-authority/30UE,Strategic Housing,,Early Intervention,Tools & Equipment - Purchase,40003,Net Expenditure or Balance,,Non-Biological Washing Powder 10kg - 100 washes,11/10/2017,124677,8.30,Revenue,Swiftkleen Ltd,17933
Chorley Borough Council,http://statistics.data.gov.uk/id/local-authority/30UE,Chorley Council,,Early Intervention,Tools & Equipment - Purchase,40003,Expenditure,,"Evans Vanodine Everfresh, Perfumed thickened toilet cleaner - 5 litre",11/10/2017,124677,6.76,Revenue,Swiftkleen Ltd,17933
Chorley Borough Council,http://statistics.data.gov.uk/id/local-authority/30UE,Strategic Housing,,Early Intervention,Cleaning Materials,40019,Materials & Supplies,,Exel PY Colour Coded Mop Head,11/10/2017,124677,11.76,Revenue,Swiftkleen Ltd,17933
Chorley Borough Council,http://statistics.data.gov.uk/id/local-authority/30UE,Chorley Council,,Early Intervention,Tools & Equipment - Purchase,40003,Tools and Equipment,,Toilet Brush & Holder - Open,11/10/2017,124677,11.40,Revenue,Swiftkleen Ltd,17933
Chorley Borough Council,http://statistics.data.gov.uk/id/local-authority/30UE,Strategic Housing,,Early Intervention,Tools & Equipment - Purchase,40003,Net Expenditure or Balance,,Colour Coded Kitchen Swing Bin 25 Litre,11/10/2017,124677,39.06,Revenue,Swiftkleen Ltd,17933
Chorley Borough Council,http://statistics.data.gov.uk/id/local-authority/30UE,Chorley Council,,Early Intervention,Tools & Equipment - Purchase,40003,Expenditure,,Washing Up Bowl - RED,11/10/2017,124677,1.01,Revenue,Swiftkleen Ltd,17933
Chorley Borough Council,http://statistics.data.gov.uk/id/local-authority/30UE,Strategic Housing,,Early Intervention,Tools & Equipment - Purchase,40003,Net Expenditure or Balance,,Quilts Single Bed 10.5 Tog,11/10/2017,124677,121.80,Revenue,Swiftkleen Ltd,17933
Chorley Borough Council,http://statistics.data.gov.uk/id/local-authority/30UE,Chorley Council,,Early Intervention,Cleaning Materials,40019,Expenditure,,Pillows Pack of 2 Medium,11/10/2017,124677,33.36,Revenue,Swiftkleen Ltd,17933
Chorley Borough Council,http://statistics.data.gov.uk/id/local-authority/30UE,Strategic Housing,,Early Intervention,Tools & Equipment - Purchase,40003,Net Expenditure or Balance,,Stainless Steel Tea Spoons - pack of 12,11/10/2017,124677,0.95,Revenue,Swiftkleen Ltd,17933
Chorley Borough Council,http://statistics.data.gov.uk/id/local-authority/30UE,Chorley Council,,Early Intervention,Tools & Equipment - Purchase,40003,Expenditure,,Chef`s Utility Knife,11/10/2017,124677,10.50,Revenue,Swiftkleen Ltd,17933
Chorley Borough Council,http://statistics.data.gov.uk/id/local-authority/30UE,Strategic Housing,,Early Intervention,Tools & Equipment - Purchase,40003,Net Expenditure or Balance,,Potato Masher,11/10/2017,124677,8.65,Revenue,Swiftkleen Ltd,17933
Chorley Borough Council,http://statistics.data.gov.uk/id/local-authority/30UE,Chorley Council,,Early Intervention,Tools & Equipment - Purchase,40003,Expenditure,,Coffee/Tea Mug,11/10/2017,124677,6.00,Revenue,Swiftkleen Ltd,17933
Chorley Borough Council,http://statistics.data.gov.uk/id/local-authority/30UE,Strategic Housing,,Early Intervention,Tools & Equipment - Purchase,40003,Expenditure,,Chopping board (white),11/10/2017,124677,28.50,Revenue,Swiftkleen Ltd,17933
Chorley Borough Council,http://statistics.data.gov.uk/id/local-authority/30UE,Chorley Council,,Early Intervention,Tools & Equipment - Purchase,40003,Expenditure,,Potato Peeler,11/10/2017,124677,3.60,Revenue,Swiftkleen Ltd,17933
Chorley Borough Council,http://statistics.data.gov.uk/id/local-authority/30UE,Strategic Housing,,Early Intervention,Tools & Equipment - Purchase,40003,Supplies and Services,,Electric Kettle - White,11/10/2017,124677,23.86,Revenue,Swiftkleen Ltd,17933
Chorley Borough Council,http://statistics.data.gov.uk/id/local-authority/30UE,Chorley Council,,Early Intervention,Tools & Equipment - Purchase,40003,Expenditure,,VDU Telephone Wipes,11/10/2017,124677,1.65,Revenue,Swiftkleen Ltd,17933
Chorley Borough Council,http://statistics.data.gov.uk/id/local-authority/30UE,Office Accommodation,,Policy & Governance,Cleaning Materials,40019,Cash,,EVER Everfresh Evens toilet cleaner apple 5L 3.38 per container QTY 3 boxes,18/10/2017,124682,20.28,Revenue,Swiftkleen Ltd,17933
Chorley Borough Council,http://statistics.data.gov.uk/id/local-authority/30UE,Mgnt & Support Services,,Policy & Governance,Cleaning Materials,40019,Expenditure,,TB Atlas thick bleach 5ltr QTY 3 boxes @ 1.55 per container,18/10/2017,124682,9.30,Revenue,Swiftkleen Ltd,17933
Chorley Borough Council,http://statistics.data.gov.uk/id/local-authority/30UE,Office Accommodation,,Policy & Governance,Cleaning Materials,40019,Cash,,HSC hard surface cleaner 5litre QTY 2 boxes   at 5.28 each,18/10/2017,124682,17.96,Revenue,Swiftkleen Ltd,17933
Chorley Borough Council,http://statistics.data.gov.uk/id/local-authority/30UE,Mgnt & Support Services,,Policy & Governance,Cleaning Materials,40019,Expenditure,,TRIPFC Trigon foam cartridges at 3.18 QTY 6 boxes,18/10/2017,124682,114.48,Revenue,Swiftkleen Ltd,17933
Chorley Borough Council,http://statistics.data.gov.uk/id/local-authority/30UE,Office Accommodation,,Policy & Governance,Cleaning Materials,40019,Cash,,TR320 toilet rolls QTY 5 packs @ 36/pack at 5.50 per box,18/10/2017,124682,27.50,Revenue,Swiftkleen Ltd,17933
Chorley Borough Council,http://statistics.data.gov.uk/id/local-authority/30UE,Mgnt & Support Services,,Policy & Governance,Cleaning Materials,40019,Expenditure,,MJ200R Mini Jumbo QTY 20 packs 12/pack @ 6.65 per pack,18/10/2017,124682,172.20,Revenue,Swiftkleen Ltd,17933
Chorley Borough Council,http://statistics.data.gov.uk/id/local-authority/30UE,Office Accommodation,,Policy & Governance,Cleaning Materials,40019,Cash,,Paper towels 3600 green 1 fold QTY 20 boxes 10.10 per box,18/10/2017,124682,202.00,Revenue,Swiftkleen Ltd,17933
Chorley Borough Council,http://statistics.data.gov.uk/id/local-authority/30UE,Mgnt & Support Services,,Policy & Governance,Cleaning Materials,40019,Expenditure,,"UB3752	 Sirius Centrefeed 2 ply roll 150m Blue 11.70 QTY 8",18/10/2017,124682,57.60,Revenue,Swiftkleen Ltd,17933
Chorley Borough Council,http://statistics.data.gov.uk/id/local-authority/30UE,Office Accommodation,,Policy & Governance,Cleaning Materials,40019,Cash,,39BBL Black bin liners QTY 5 boxes 11.70 per box,18/10/2017,124682,58.50,Revenue,Swiftkleen Ltd,17933
Chorley Borough Council,http://statistics.data.gov.uk/id/local-authority/30UE,Mgnt & Support Services,,Policy & Governance,Cleaning Materials,40019,Expenditure,,SBL White Swing bin liners 20 roll per pack 72p per pack QTY 40 packs,18/10/2017,124682,24.80,Revenue,Swiftkleen Ltd,17933
Chorley Borough Council,http://statistics.data.gov.uk/id/local-authority/30UE,Office Accommodation,,Policy & Governance,Cleaning Materials,40019,Cash,,CAF Spray Air fresh QTY 12 @0.70 each,18/10/2017,124682,6.00,Revenue,Swiftkleen Ltd,17933
Chorley Borough Council,http://statistics.data.gov.uk/id/local-authority/30UE,Mgnt & Support Services,,Policy & Governance,Cleaning Materials,40019,Expenditure,,DCS Green Dishcloths QTY 10 packs 10/pack @ 1.92 each,18/10/2017,124682,19.90,Revenue,Swiftkleen Ltd,17933
Chorley Borough Council,http://statistics.data.gov.uk/id/local-authority/30UE,Chorley Borough Council,,Business Development & Growth,Cleaning Materials,40019,Expenditure,,Please supply janitorial supplies as per e-mail,20/10/2017,125000,389.39,Revenue,Swiftkleen Ltd,17933
Chorley Borough Council,http://statistics.data.gov.uk/id/local-authority/30UE,Employment Skills & Business,,Business Development & Growth,Grants To Other Organisations,40127,Net Expenditure or Balance,,grant,20/10/2017,124988,"10,000.00",Revenue,T Sumner Smith Ltd,76933
Chorley Borough Council,http://statistics.data.gov.uk/id/local-authority/30UE,Central Support Services,1009,Policy & Governance,Car Leasing Payment,14100,Net Expenditure or Balance,,NAME REDACTED,06/10/2017,124639,"2,308.72",Revenue,TCH Leasing,64083
Chorley Borough Council,http://statistics.data.gov.uk/id/local-authority/30UE,Performance,,Policy & Governance,Car Leasing Payment,14100,Expenditure,,,06/10/2017,124639,173.77,Revenue,TCH Leasing,64083
Chorley Borough Council,http://statistics.data.gov.uk/id/local-authority/30UE,Mark Lester,,Business Development & Growth,Architects Fees,3022,Other Subjective Codes,,50% cost of transport statement,06/10/2017,124644,"1,977.00",Revenue,The Chorley Community Trust,76945
Chorley Borough Council,http://statistics.data.gov.uk/id/local-authority/30UE,Corporate and democratic core,,Policy & Governance,Professional Fees,40063,Professional Fees,,prize money,25/10/2017,124666,300.00,Revenue,The Hardy Plant Society,76961
Chorley Borough Council,http://statistics.data.gov.uk/id/local-authority/30UE,Corporate and democratic core,,Policy & Governance,Professional Fees,40063,Professional Fees,,prize money,04/10/2017,124542,300.00,Revenue,The National Sweet Pea Society,71521
Chorley Borough Council,http://statistics.data.gov.uk/id/local-authority/30UE,Cost of Service,,Policy & Governance,Professional Fees,40063,Professional Fees,,prize money,25/10/2017,124667,250.00,Revenue,The National Sweet Pea Society,71521
Chorley Borough Council,http://statistics.data.gov.uk/id/local-authority/30UE,Parks and Open Spaces,,Customer & Digital,Playground Equipment,40008,Net Expenditure or Balance,,"Annual Inspections for Astley Park 1,2,&3& Rangletts Rec",27/10/2017,125025,450.00,Revenue,The Play Inspection Company,20632
Chorley Borough Council,http://statistics.data.gov.uk/id/local-authority/30UE,Cost of Service,,Policy & Governance,Other Fees,40212,Expenditure,,Printing of Mayor`s official Christmas card with envelopes. Quantity 220.,27/10/2017,125118,268.60,Revenue,The Print Quarter,17987
Chorley Borough Council,http://statistics.data.gov.uk/id/local-authority/30UE,Corporate and democratic core,,Policy & Governance,Professional Fees,40063,Expenditure,,prize money,25/10/2017,124668,572.00,Revenue,The Rose Society UK,76958
Chorley Borough Council,http://statistics.data.gov.uk/id/local-authority/30UE,Central Services,,Policy & Governance,Publications,40054,Net Expenditure or Balance,,SCHOFIELD`S ELECTION LAW - 5 Volumes looseleaf plus release updates ( ISBN:  9780721914923) Account number ,06/10/2017,124579,440.00,Revenue,Thomson Reuters RE;Sweet & Maxwell Limited,17932
Chorley Borough Council,http://statistics.data.gov.uk/id/local-authority/30UE,Cost of Service,,Policy & Governance,Publications,40054,Net Expenditure or Balance,,,06/10/2017,124579,440.00,Revenue,Thomson Reuters RE;Sweet & Maxwell Limited,17932
Chorley Borough Council,http://statistics.data.gov.uk/id/local-authority/30UE,Cost of Service,,Early Intervention,General Subscriptions,40146,Net Expenditure or Balance,,1 year subscription online ver of Encyclopaedia of Environmental Health Law and Practice as per discussion NAME REDACTED,13/10/2017,124841,"1,540.00",Revenue,Thomson Reuters RE;Sweet & Maxwell Limited,17932
Chorley Borough Council,http://statistics.data.gov.uk/id/local-authority/30UE,Street Services,,Customer & Digital,Other Contributions,40145,Contributions,,ADDRESS REDACTED,06/10/2017,124642,"4,706.00",Revenue,NAME REDACTED,76964
Chorley Borough Council,http://statistics.data.gov.uk/id/local-authority/30UE,Chorley Council,,Business Development & Growth,Christmas Lights,40179,Net Expenditure or Balance,,supply and fit 170 mini Christmas trees with smart cell lights as per existing plan.,20/10/2017,124967,"11,312.50",Revenue,Town Centre Trees,57436
Chorley Borough Council,http://statistics.data.gov.uk/id/local-authority/30UE,Street Services,,Customer & Digital,Petrol,30005,Direct Transport Costs,5016,Sep-17,26/10/2017,124493,547.12,Revenue,Uk Fuels Ltd,57996
Chorley Borough Council,http://statistics.data.gov.uk/id/local-authority/30UE,General Fund Revenue Account,,Policy & Governance,Miscellaneous Expenses,40200,Supplies and Services,,levels 1-5,06/10/2017,124571,"1,531.80",Revenue,UK Healthcare (BDHSC),17241
Chorley Borough Council,http://statistics.data.gov.uk/id/local-authority/30UE,Holding and Suspense Accounts,,Policy & Governance,General Balances,100,Other,,top ups,06/10/2017,124571,588.27,Revenue,UK Healthcare (BDHSC),17241
Chorley Borough Council,http://statistics.data.gov.uk/id/local-authority/30UE,Recharges within central servi,,Policy & Governance,Exhibitions & Special Events,40158,Supplies and Services,,2 X Face Painter 5.30pm - 9pm Fri 6 Oct 1 x Face Painter 10 - 1.30pm Sat 7 Oct 2 x Face Painter 5.30 - 9pm Sat 7 Oct,11/10/2017,124744,675.00,Revenue,UK Media and Events Limited,71221
Chorley Borough Council,http://statistics.data.gov.uk/id/local-authority/30UE,Cost of Service,,Policy & Governance,Exhibitions & Special Events,40158,Expenditure,,"Provision and delivery of the stage, light, sound and event infrastructure of the Christmas lights switch on as per quote SQ465",25/10/2017,125006,"3,230.75",Revenue,UK Media and Events Limited,71221
Chorley Borough Council,http://statistics.data.gov.uk/id/local-authority/30UE,Holding and Suspense Accs,,Policy & Governance,General Balances,100,Other,,sal ded,25/10/2017,124989,"1,870.85",Revenue,Unify Credit Union Ltd,55509
Chorley Borough Council,http://statistics.data.gov.uk/id/local-authority/30UE,Chorley Borough Council,,Customer & Digital,Water - Metered Supplies,20022,Water Services,5009,Hire of Standpipe 22mm bayonet c/w meter & double check valve (C14003585) @ 47.21 per month.  for period July 17 - March18,11/10/2017,124662,141.63,Revenue,United Utilites (Standpipe Invoices Only),20701
Chorley Borough Council,http://statistics.data.gov.uk/id/local-authority/30UE,"Highways, Roads & Transport Se",,Customer & Digital,Water - Metered Supplies,20022,Expenditure,,Hire of Standpipe 22mm bayonet c/w meter & double check valve (C11000757) @ 47.21 per month.  for period July 17 - March18,11/10/2017,124662,141.63,Revenue,United Utilites (Standpipe Invoices Only),20701
Chorley Borough Council,http://statistics.data.gov.uk/id/local-authority/30UE,Central and Support Services,,Policy & Governance,Training Course Fees,17010,Employees,,LPC tuition fees for 2017/18,20/10/2017,124968,"4,500.00",Revenue,University of Central Lancashire (UCLAN),22472
Chorley Borough Council,http://statistics.data.gov.uk/id/local-authority/30UE,Health & Wellbeing,,Early Intervention,Grants,3002,Other,,ADDRESS REDACTED,18/10/2017,124812,"14,601.00",Revenue,UPS Building and Maintenance Ltd,76235
Chorley Borough Council,http://statistics.data.gov.uk/id/local-authority/30UE,General Fund Revenue Account,,Business Development & Growth,Professional Fees,40063,Professional Fees,,Planning Support from Urban Vision for period April - July 2017,13/10/2017,124844,"3,600.00",Revenue,Urban Vision Partnership Ltd,21181
Chorley Borough Council,http://statistics.data.gov.uk/id/local-authority/30UE,Cost of Service,,Customer & Digital,Professional Fees,40063,Professional Fees,,Fees for professional planning advice,27/10/2017,124902,"8,332.74",Revenue,Urban Vision Partnership Ltd,21181
Chorley Borough Council,http://statistics.data.gov.uk/id/local-authority/30UE,Waste Management,,Customer & Digital,Unitary Payment(S),50009,Private Contractors,5042,Provision of household waste and recycling collection service including subscription garden waste collections and other ancillary ,18/10/2017,123323,"274,640.75",Revenue,Veolia ES (UK) Ltd,20748
Chorley Borough Council,http://statistics.data.gov.uk/id/local-authority/30UE,Central & Support Appointments,1009,Customer & Digital,Unitary Payment(S),50009,Private Contractors,,Provision of household waste and recycling collection service including subscription garden waste collections and other ancillary ,18/10/2017,123792,"274,640.75",Revenue,Veolia ES (UK) Ltd,20748
Chorley Borough Council,http://statistics.data.gov.uk/id/local-authority/30UE,Street Services,,Customer & Digital,Other Contributions,40145,Net Expenditure or Balance,,ADDRESS REDACTED,18/10/2017,124814,"4,922.40",Revenue,NAME REDACTED,73889
Chorley Borough Council,http://statistics.data.gov.uk/id/local-authority/30UE,Environment and Community,,Business Development & Growth,Water - Metered Supplies,20022,Expenditure,,astley park village centre,11/10/2017,124777,632.50,Revenue,Water-plus,17926
Chorley Borough Council,http://statistics.data.gov.uk/id/local-authority/30UE,General Fund Revenue Account,,Business Development & Growth,Water - Metered Supplies,20022,Cash,,astley coach house,11/10/2017,124779,"1,281.84",Revenue,Water-plus,17926
Chorley Borough Council,http://statistics.data.gov.uk/id/local-authority/30UE,Museums and Galleries,,Business Development & Growth,Water - Metered Supplies,20022,Cash,,astley hall,20/10/2017,124990,532.91,Revenue,Water-plus,17926
Chorley Borough Council,http://statistics.data.gov.uk/id/local-authority/30UE,Streetscene Neighbourhoods Env,,Business Development & Growth,Water - Metered Supplies,20022,Expenditure,,Stump lane destructor,25/10/2017,125040,"1,859.31",Revenue,Water-plus,17926
Chorley Borough Council,http://statistics.data.gov.uk/id/local-authority/30UE,Central and Support Services,,Policy & Governance,HR Recruitment - Advertising,15300,Advertising,,Advertising for Tree Officer post,11/10/2017,124650,299.00,Revenue,Websense Recruit Ltd T/A Fill My Vacancy,76200
Chorley Borough Council,http://statistics.data.gov.uk/id/local-authority/30UE,Street Services,,Customer & Digital,Provn Of Street Furniture,20057,Grounds Maintenance,,Please supply 10 x MLB/120 Closed Top Litter Bin complete with 5mm base as per your quote 42454 dated 26/09/2017,20/10/2017,124903,"1,900.00",Revenue,Wybone Ltd,18097
